Workbook

Sheet MainMenu

Sheet Technologies Intro (hidden)

Sheet Chlorination (hidden)

Sheet RoughingFilter (hidden)

Sheet C&F (hidden)

Sheet Sedimentation (hidden)

Sheet RSF (hidden)

Sheet UserInterface (hidden)
A1: Water Treatment Technology Selection Guide
B4: Who Are You?
B6: Name: | D6: Bart Simpson
B7: Occupation / Designation:
B8: Country:
B9: State:
B10: City: | D10: Springfield
B15: Improving Your Water
B17: How many people will this system need to serve on a daily basis? ------------------------------------------------- | I17: 6000 | J17: people
B18: How much water does one person approximately use daily? (typical: 150litres/day) ---------------------------- | I18: 150 | J18: litres/day
B20: What is your source of raw water? ---------------------------------------------------------------------------------------- | I20: Stream
B21: How much water can be collected from this source per day? --------------------------------------------------------- | I21: 1000000 | J21: litres/day
B22: How does the volume of the raw water change with the weather (e.g. storm, dry season, etc.)
B23: Dry Season ----------------------- | C23: 40 | D23: %
B24: Normal Weather ------------------- | C24: 100 | D24: %
B25: Wet Season ---------------------- | C25: 150 | D25: %
B30: Quality of Current Water Source
B32: How does your water look like? (Pick one picture that best represents the turbidity level) -------------------- | I32: Picture 2 - 25 NTU
B34: Picture 1 (10 NTU) | C34: Picture 2 (25 NTU) | E34: Picture 3 (50 NTU) | G34: Picture 4 (100 NTU) | I34: Picture 5 (250 NTU)
B37: Alternatively, please enter the turbidity value of the source water if you have prior sampling results ------------- | J37: NTU
B39: Does your water smell (Yes/No)? --------------------------------------- | F39: No
B40: Does your water taste bad (Yes/No)? ---------------------------------- | F40: No
B41: What color is your water? ------------------------------------------------ | F41: Cloudy-white
B42: Does your water contain algae (Yes/No)? ----------------------------- | F42: No
B44: Do you have sampling or quality information for your water source? (e.g. from a laboratory) -------------------- | I44: Yes
B46: If Yes, please indicate below the levels where data is available.
B48: General | I48: Inorganics
B49: Total Organic Carbon ----------------------- | D49: 10 | E49: mg/L | I49: Antimony -------------------- | L49: mg/L
B50: pH (1-14) ------------------------------------- | D50: 7 | I50: Arsenic ----------------------- | L50: mg/L
I51: Beryllium -------------------- | L51: mg/L
I52: Cadmium -------------------- | L52: mg/L
I53: Total Chromium ------------ | L53: mg/L
B54: Biological Contaminants | D54: Present | E54: Concentration | I54: Cyanide ---------------------- | L54: mg/L
B55: Protozoa: Cryptosporidium ---------------- | D55: Yes | E55: 0.0001 | G55: Organisms/liter | I55: Mercury ---------------------- | L55: mg/L
B56: Bacteria: Total Coliform ------------------- | D56: Yes | E56: 0.00022 | G56: Organisms/liter | I56: Selenium --------------------- | L56: mg/L
B57: Virus: Rotavirus ----------------------------- | D57: Yes | E57: 0.00013 | G57: Organisms/liter
I58: Secondary Contaminants
I59: Iron ---------------------------- | L59: mg/L
I60: Manganese ------------------- | L60: mg/L
B66: Desired Water Quality
B68: Are you aware of the required standards for drinking water in your country (Yes/No)? --------------------------- | I68: No
B70: If Yes, please indicate below the required levels of treatment where data is available.
B72: General | I72: Inorganics
B73: Turbidity | E73: NTU | I73: Cadmium -------------------- | L73: mg/L
B74: Total Organic Carbon | E74: mg/L | I74: Total Chromium ------------ | L74: mg/L
B75: pH (1-14) | I75: Mercury ---------------------- | L75: mg/L
I76: Selenium --------------------- | L76: mg/L
B77: Biological Contaminants
B78: Protozoa: Cryptosporidium | E78: Organisms/Liter
B79: Bacteria: Total Coliform | E79: Organisms/Liter
B80: Virus: Rotavirus | E80: Organisms/Liter
B82: If No, please select which of the following treatment standards you will like the treatment to meet? ------------ | I82: World Health Organization (WHO)
B87: Resources Available
B89: Please indicate the ease of access for the following resources:
B90: i) Chlorine: Tablet, or Liquids (NaOCl, Ca(OCl)2, HOCl) ----------------- | F90: Yes - Can be obtained within Community
B91: ii) Poly Aluminium Chloride (PACl) -------------------------------------- | F91: No - Cannot be obtained easily
B92: iii) Aluminium Sulphate --------------------------------------------------- | F92: No - Cannot be obtained easily
B93: iv) Ferric Chloride ---------------------------------------------------------- | F93: No - Cannot be obtained easily
B94: v) Sand ----------------------------------------------------------------------- | F94: Yes - Can be obtained within Community
B95: vi) Gravel -------------------------------------------------------------------- | F95: Yes - Can be obtained within Community
B96: vii) Cement ------------------------------------------------------------------ | F96: Yes - Can be obtained within Community
B97: viii) Bricks -------------------------------------------------------------------- | F97: Yes - Can be obtained within Community
B98: ix) PVC Pipings -------------------------------------------------------------- | F98: Yes - Can be obtained within Community
B99: x) Float Valves -------------------------------------------------------------- | F99: Yes - Can be obtained within Community
B101: Is electrical supply available at the proposed site location? -------- | F101: Yes
B103: Can you rate the skill level of the following workers in your community: (0 to 5, 0 = No Skill Workers Available, 5 = Advanced Skills)
B105: i) Masons ----------------------------------------------------------------------------------------------------------------------------------------------- | J105: 1 - Basic Skills
B106: ii) Carpenters ------------------------------------------------------------------------------------------------------------------------------------------ | J106: 3
B107: iii) Metal Workers ------------------------------------------------------------------------------------------------------------------------------------- | J107: 5 - Expert Skills
B109: Can you rate the technical ability of operators who will operate the proposed water treatment system: ----------------------------- | J109: 2
B110: (1 to 5, 1 = Basic Skills, 5 = Advanced Engineering Skills)
B115: Community Info
B117: Are there any strong objections within the community pertaining to the use of any of these technologies?
B119: None | D119: None | H119: None
B121: How important is the taste of water (1 to 4, 1 = Not Important, 5 = Extremely Important) ------------------------------------------------ | J121: 3
B122: How important is the smell of water (1 to 4, 1 = Not Important, 5 = Extremely Important) ----------------------------------------------- | J122: 4
B123: How important is the appearance of water (1 to 4, 1 = Not Important, 5 = Extremely Important) ---------------------------------------- | J123: 4

Sheet Matrix (hidden)
A1: Category | B1: User Interface Data | C1: Unit | D1: Boolean/Scale Interpretation | E1: Weighted Score | F1: Option 1: Chlorination | G1: Option 2: Stacked Rapid Sand Filtration + Chlorination | H1: Option 3: Roughing Filter + Stacked Rapid Sand Filtration + Chlorination | I1: Option 4: Coagulation + Flocculation + Stacked Rapid Sand Filtration + Chlorination | J1: Option 5: Coagulation + Flocculation + Sedimentation + Chlorination | K1: Option 6: Coagulation + Flocculation + Sedimentation + Stacked Rapid Sand Filtration + Chlorination | L1: Option 7: Stacked Rapid Sand Filtration | M1: Option 8: Roughing Filter + Stacked Rapid Sand Filtration | N1: Option 9: Coagulation + Flocculation + Stacked Rapid Sand Filtration | O1: Option 10: Coagulation + Flocculation + Sedimentation | P1: Option 11: Coagulation + Flocculation + Sedimentation + Stacked Rapid Sand Filtration
A2: Raw Water Source
A3: Volume of Water Required | B3: =UserInterface!I17*UserInterface!I18 -> 900000 | C3: litres/day | D3: =B3 -> 900000
A4: Volume Collected (Normal) | B4: =UserInterface!I21 -> 1000000 | C4: litres/day | D4: =B4 -> 1000000
A5: Volume Collected (Dry Season) | B5: =UserInterface!C23/100*UserInterface!I21 -> 400000 | C5: litres/day | D5: 400000
A6: Volume Collected (Wet Season) | B6: =UserInterface!C25/100*UserInterface!I21 -> 1500000 | C6: litres/day | D6: 1500000
A8: Water Quality
A9: Turbidity | B9: =IF(LEFT(UserInterface!I32,7)="Picture",VALUE(MID(UserInterface!I32,13,3)),UserInterface!I37) -> 25 | C9: NTU | D9: =IF(B9>0,1,0) -> 1 | E9: 100 | F9: 0 | G9: 1 | H9: 1 | I9: 1 | J9: 1 | K9: 1 | L9: 1 | M9: 1 | N9: 1 | O9: 1 | P9: 1
A10: Algae | B10: =UserInterface!F42 -> No | C10: Boolean | D10: =IF(B10="Yes",1,0) -> 0 | E10: =D10*25 -> 0 | F10: 0 | G10: 1 | H10: 1 | I10: 0 | J10: 1 | K10: 1 | L10: 1 | M10: 1 | N10: 1 | O10: 1 | P10: 1
A12: Sampling vs. Treatment Ability | B12: =UserInterface!I44 -> Yes | C12: Boolean | D12: =IF(B12="Yes",1,0) -> 1
A13: TOC | B13: =UserInterface!D49 -> 10 | C13: mg/L | D13: =IF(B13>0,$D$12*1,0) -> 1
A14: pH | B14: =UserInterface!D50 -> 7 | C14: pH Scale | D14: =IF(B14>0,$D$12*1,0) -> 1
A15: Protozoa: Cryptosporidium | B15: =IF(AND(UserInterface!D55="Yes",UserInterface!E55>0),UserInterface!E55,IF(AND(UserInterface!D55="Yes",UserInterface!E55=""),1,0)) -> 0.0001 | C15: Organisms/L | D15: 1 | E15: =IF(NOT(D12),25,25*D15) -> 25 | F15: 1 | G15: 1 | H15: 1 | I15: 1 | J15: 1 | K15: 1 | L15: 1 | M15: 1 | N15: 1 | O15: 1 | P15: 1
A16: Bacteria: Total Coliform | B16: =IF(AND(UserInterface!D56="Yes",UserInterface!E56>0),UserInterface!E56,IF(AND(UserInterface!D56="Yes",UserInterface!E56=""),1,0)) -> 0.00022 | C16: Organisms/L | D16: 1 | E16: =IF(NOT(D13),25,25*D16) -> 25 | F16: 1 | G16: 1 | H16: 1 | I16: 1 | J16: 1 | K16: 1 | L16: 1 | M16: 1 | N16: 1 | O16: 1 | P16: 1
A17: Virus: Rotavirus | B17: =IF(AND(UserInterface!D57="Yes",UserInterface!E57>0),UserInterface!E57,IF(AND(UserInterface!D57="Yes",UserInterface!E57=""),1,0)) -> 0.00013 | C17: Organisms/L | D17: 1 | E17: =IF(NOT(D15),25,25*D17) -> 25 | F17: 1 | G17: 1 | H17: 1 | I17: 1 | J17: 1 | K17: 1 | L17: 1 | M17: 1 | N17: 1 | O17: 1 | P17: 1
A18: Iron | B18: =UserInterface!K59 -> 0 | C18: mg/L | D18: 0 | E18: 25 | F18: 1 | G18: 1 | H18: 1 | I18: 1 | J18: 1 | K18: 1 | L18: 0 | M18: 0 | N18: 1 | O18: 1 | P18: 1
A19: Manganese | B19: =UserInterface!K60 -> 0 | C19: mg/L | D19: 0 | E19: 25 | F19: 1 | G19: 1 | H19: 1 | I19: 1 | J19: 1 | K19: 1 | L19: 0 | M19: 0 | N19: 1 | O19: 1 | P19: 1
A20: Antimony | B20: =UserInterface!K49 -> 0 | C20: mg/L | D20: 0 | E20: 25 | F20: 0 | G20: 0 | H20: 0 | I20: 0 | J20: 1 | K20: 1 | L20: 0 | M20: 0 | N20: 1 | O20: 1 | P20: 1
A21: Arsenic | B21: =UserInterface!K50 -> 0 | C21: mg/L | D21: 0 | E21: 25 | F21: 0 | G21: 0 | H21: 0 | I21: 0 | J21: 1 | K21: 1 | L21: 0 | M21: 0 | N21: 1 | O21: 1 | P21: 1
A22: Beryllium | B22: =UserInterface!K51 -> 0 | C22: mg/L | D22: 0 | E22: 25 | F22: 0 | G22: 0 | H22: 0 | I22: 0 | J22: 1 | K22: 1 | L22: 0 | M22: 0 | N22: 1 | O22: 1 | P22: 1
A23: Cadmium | B23: =UserInterface!K52 -> 0 | C23: mg/L | D23: 0 | E23: 25 | F23: 0 | G23: 0 | H23: 0 | I23: 0 | J23: 1 | K23: 1 | L23: 0 | M23: 0 | N23: 1 | O23: 1 | P23: 1
A24: Total Chromium | B24: =UserInterface!K53 -> 0 | C24: mg/L | D24: 0 | E24: 25 | F24: 0 | G24: 0 | H24: 0 | I24: 0 | J24: 1 | K24: 1 | L24: 0 | M24: 0 | N24: 1 | O24: 1 | P24: 1
A25: Cyanide | B25: =UserInterface!K54 -> 0 | C25: mg/L | D25: 0 | E25: 25 | F25: 1 | G25: 1 | H25: 1 | I25: 1 | J25: 1 | K25: 1 | L25: 0 | M25: 0 | N25: 0 | O25: 0 | P25: 0
A26: Mercury | B26: =UserInterface!K55 -> 0 | C26: mg/L | D26: 0 | E26: 25 | F26: 0 | G26: 0 | H26: 0 | I26: 0 | J26: 1 | K26: 1 | L26: 0 | M26: 0 | N26: 1 | O26: 1 | P26: 1
A27: Selenium | B27: =UserInterface!K56 -> 0 | C27: mg/L | D27: 0 | E27: 25 | F27: 0 | G27: 0 | H27: 0 | I27: 0 | J27: 1 | K27: 1 | L27: 0 | M27: 0 | N27: 1 | O27: 1 | P27: 1
A29: Meeting Standards | B29: =UserInterface!I68 -> No | C29: Boolean | D29: =IF(B29="Yes", 2, IF(UserInterface!I82="World Health Organization (WHO)", 0, IF(UserInterface!I82="United States Environmental Protection Agency (US-EPA)",1,0))) -> 0 | E29: (0 - WHO Standards, 1 - USEPA Standards, 2 - Local Standards)
A30: Turbidity | B30: =UserInterface!D73 -> 0 | C30: NTU | D30: =IF(AND($D$29=1,B30>0),1,IF(AND($D$29=1,B30<=0),0,1)) -> 1 | E30: 200 | F30: =IF('Quality Standard'!B23<=OFFSET('Quality Standard'!$B$2,0,$D$29,1,1),1,0) -> 0 | G30: =IF('Quality Standard'!C23<=OFFSET('Quality Standard'!$B$2,0,$D$29,1,1),1,0) -> 0 | H30: =IF('Quality Standard'!D23<=OFFSET('Quality Standard'!$B$2,0,$D$29,1,1),1,0) -> 1 | I30: =IF('Quality Standard'!E23<=OFFSET('Quality Standard'!$B$2,0,$D$29,1,1),1,0) -> 1 | J30: =IF('Quality Standard'!F23<=OFFSET('Quality Standard'!$B$2,0,$D$29,1,1),1,0) -> 1 | K30: =IF('Quality Standard'!G23<=OFFSET('Quality Standard'!$B$2,0,$D$29,1,1),1,0) -> 1 | L30: =IF('Quality Standard'!H23<=OFFSET('Quality Standard'!$B$2,0,$D$29,1,1),1,0) -> 0 | M30: =IF('Quality Standard'!I23<=OFFSET('Quality Standard'!$B$2,0,$D$29,1,1),1,0) -> 1 | N30: =IF('Quality Standard'!J23<=OFFSET('Quality Standard'!$B$2,0,$D$29,1,1),1,0) -> 1 | O30: =IF('Quality Standard'!K23<=OFFSET('Quality Standard'!$B$2,0,$D$29,1,1),1,0) -> 1 | P30: =IF('Quality Standard'!L23<=OFFSET('Quality Standard'!$B$2,0,$D$29,1,1),1,0) -> 1
A31: TOC | B31: =UserInterface!D74 -> 0 | C31: mg/L | D31: 1
A32: pH | B32: =UserInterface!D75 -> 0 | C32: pH Scale | D32: 1
A33: Protozoa: Cryptosporidium | B33: =UserInterface!D78 -> 0 | C33: Organisms/Liter | D33: 1 | E33: =E15 -> 25 | F33: =IF('Quality Standard'!B24<=OFFSET('Quality Standard'!$B$3,0,$D$29,1,1),1,0) -> 0 | G33: =IF('Quality Standard'!C24<=OFFSET('Quality Standard'!$B$3,0,$D$29,1,1),1,0) -> 0 | H33: =IF('Quality Standard'!D24<=OFFSET('Quality Standard'!$B$3,0,$D$29,1,1),1,0) -> 1 | I33: =IF('Quality Standard'!E24<=OFFSET('Quality Standard'!$B$3,0,$D$29,1,1),1,0) -> 1 | J33: =IF('Quality Standard'!F24<=OFFSET('Quality Standard'!$B$3,0,$D$29,1,1),1,0) -> 1 | K33: =IF('Quality Standard'!G24<=OFFSET('Quality Standard'!$B$3,0,$D$29,1,1),1,0) -> 1 | L33: =IF('Quality Standard'!H24<=OFFSET('Quality Standard'!$B$3,0,$D$29,1,1),1,0) -> 0 | M33: =IF('Quality Standard'!I24<=OFFSET('Quality Standard'!$B$3,0,$D$29,1,1),1,0) -> 1 | N33: =IF('Quality Standard'!J24<=OFFSET('Quality Standard'!$B$3,0,$D$29,1,1),1,0) -> 1 | O33: =IF('Quality Standard'!K24<=OFFSET('Quality Standard'!$B$3,0,$D$29,1,1),1,0) -> 1 | P33: =IF('Quality Standard'!L24<=OFFSET('Quality Standard'!$B$3,0,$D$29,1,1),1,0) -> 1
A34: Bacteria: Total Coliform | B34: =UserInterface!D79 -> 0 | C34: Organisms/Liter | D34: 1 | E34: =E16 -> 25 | F34: =IF('Quality Standard'!B25<=OFFSET('Quality Standard'!$B$4,0,$D$29,1,1),1,0) -> 0 | G34: =IF('Quality Standard'!C25<=OFFSET('Quality Standard'!$B$4,0,$D$29,1,1),1,0) -> 0 | H34: =IF('Quality Standard'!D25<=OFFSET('Quality Standard'!$B$4,0,$D$29,1,1),1,0) -> 0 | I34: =IF('Quality Standard'!E25<=OFFSET('Quality Standard'!$B$4,0,$D$29,1,1),1,0) -> 0 | J34: =IF('Quality Standard'!F25<=OFFSET('Quality Standard'!$B$4,0,$D$29,1,1),1,0) -> 0 | K34: =IF('Quality Standard'!G25<=OFFSET('Quality Standard'!$B$4,0,$D$29,1,1),1,0) -> 0 | L34: =IF('Quality Standard'!H25<=OFFSET('Quality Standard'!$B$4,0,$D$29,1,1),1,0) -> 0 | M34: =IF('Quality Standard'!I25<=OFFSET('Quality Standard'!$B$4,0,$D$29,1,1),1,0) -> 0 | N34: =IF('Quality Standard'!J25<=OFFSET('Quality Standard'!$B$4,0,$D$29,1,1),1,0) -> 0 | O34: =IF('Quality Standard'!K25<=OFFSET('Quality Standard'!$B$4,0,$D$29,1,1),1,0) -> 0 | P34: =IF('Quality Standard'!L25<=OFFSET('Quality Standard'!$B$4,0,$D$29,1,1),1,0) -> 0
A35: Virus: Rotavirus | B35: =UserInterface!D80 -> 0 | C35: Organisms/Liter | D35: 1 | E35: =E17 -> 25 | F35: =IF('Quality Standard'!B26<=OFFSET('Quality Standard'!$B$5,0,$D$29,1,1),1,0) -> 1 | G35: =IF('Quality Standard'!C26<=OFFSET('Quality Standard'!$B$5,0,$D$29,1,1),1,0) -> 1 | H35: =IF('Quality Standard'!D26<=OFFSET('Quality Standard'!$B$5,0,$D$29,1,1),1,0) -> 1 | I35: =IF('Quality Standard'!E26<=OFFSET('Quality Standard'!$B$5,0,$D$29,1,1),1,0) -> 1 | J35: =IF('Quality Standard'!F26<=OFFSET('Quality Standard'!$B$5,0,$D$29,1,1),1,0) -> 1 | K35: =IF('Quality Standard'!G26<=OFFSET('Quality Standard'!$B$5,0,$D$29,1,1),1,0) -> 1 | L35: =IF('Quality Standard'!H26<=OFFSET('Quality Standard'!$B$5,0,$D$29,1,1),1,0) -> 0 | M35: =IF('Quality Standard'!I26<=OFFSET('Quality Standard'!$B$5,0,$D$29,1,1),1,0) -> 0 | N35: =IF('Quality Standard'!J26<=OFFSET('Quality Standard'!$B$5,0,$D$29,1,1),1,0) -> 0 | O35: =IF('Quality Standard'!K26<=OFFSET('Quality Standard'!$B$5,0,$D$29,1,1),1,0) -> 1 | P35: =IF('Quality Standard'!L26<=OFFSET('Quality Standard'!$B$5,0,$D$29,1,1),1,0) -> 1
A36: Cadmium | B36: =UserInterface!K73 -> 0 | C36: mg/L | D36: 1 | E36: 25 | F36: =IF('Quality Standard'!B27<=OFFSET('Quality Standard'!$B$6,0,$D$29,1,1),1,0) -> 1 | G36: =IF('Quality Standard'!C27<=OFFSET('Quality Standard'!$B$6,0,$D$29,1,1),1,0) -> 1 | H36: =IF('Quality Standard'!D27<=OFFSET('Quality Standard'!$B$6,0,$D$29,1,1),1,0) -> 1 | I36: =IF('Quality Standard'!E27<=OFFSET('Quality Standard'!$B$6,0,$D$29,1,1),1,0) -> 1 | J36: =IF('Quality Standard'!F27<=OFFSET('Quality Standard'!$B$6,0,$D$29,1,1),1,0) -> 1 | K36: =IF('Quality Standard'!G27<=OFFSET('Quality Standard'!$B$6,0,$D$29,1,1),1,0) -> 1 | L36: =IF('Quality Standard'!H27<=OFFSET('Quality Standard'!$B$6,0,$D$29,1,1),1,0) -> 1 | M36: =IF('Quality Standard'!I27<=OFFSET('Quality Standard'!$B$6,0,$D$29,1,1),1,0) -> 1 | N36: =IF('Quality Standard'!J27<=OFFSET('Quality Standard'!$B$6,0,$D$29,1,1),1,0) -> 1 | O36: =IF('Quality Standard'!K27<=OFFSET('Quality Standard'!$B$6,0,$D$29,1,1),1,0) -> 1 | P36: =IF('Quality Standard'!L27<=OFFSET('Quality Standard'!$B$6,0,$D$29,1,1),1,0) -> 1
A37: Total Chromium | B37: =UserInterface!K74 -> 0 | C37: mg/L | D37: 1 | E37: 25 | F37: =IF('Quality Standard'!B28<=OFFSET('Quality Standard'!$B$7,0,$D$29,1,1),1,0) -> 1 | G37: =IF('Quality Standard'!C28<=OFFSET('Quality Standard'!$B$7,0,$D$29,1,1),1,0) -> 1 | H37: =IF('Quality Standard'!D28<=OFFSET('Quality Standard'!$B$7,0,$D$29,1,1),1,0) -> 1 | I37: =IF('Quality Standard'!E28<=OFFSET('Quality Standard'!$B$7,0,$D$29,1,1),1,0) -> 1 | J37: =IF('Quality Standard'!F28<=OFFSET('Quality Standard'!$B$7,0,$D$29,1,1),1,0) -> 1 | K37: =IF('Quality Standard'!G28<=OFFSET('Quality Standard'!$B$7,0,$D$29,1,1),1,0) -> 1 | L37: =IF('Quality Standard'!H28<=OFFSET('Quality Standard'!$B$7,0,$D$29,1,1),1,0) -> 1 | M37: =IF('Quality Standard'!I28<=OFFSET('Quality Standard'!$B$7,0,$D$29,1,1),1,0) -> 1 | N37: =IF('Quality Standard'!J28<=OFFSET('Quality Standard'!$B$7,0,$D$29,1,1),1,0) -> 1 | O37: =IF('Quality Standard'!K28<=OFFSET('Quality Standard'!$B$7,0,$D$29,1,1),1,0) -> 1 | P37: =IF('Quality Standard'!L28<=OFFSET('Quality Standard'!$B$7,0,$D$29,1,1),1,0) -> 1
A38: Mercury | B38: =UserInterface!K75 -> 0 | C38: mg/L | D38: 1 | E38: 25 | F38: =IF('Quality Standard'!B29<=OFFSET('Quality Standard'!$B$8,0,$D$29,1,1),1,0) -> 1 | G38: =IF('Quality Standard'!C29<=OFFSET('Quality Standard'!$B$8,0,$D$29,1,1),1,0) -> 1 | H38: =IF('Quality Standard'!D29<=OFFSET('Quality Standard'!$B$8,0,$D$29,1,1),1,0) -> 1 | I38: =IF('Quality Standard'!E29<=OFFSET('Quality Standard'!$B$8,0,$D$29,1,1),1,0) -> 1 | J38: =IF('Quality Standard'!F29<=OFFSET('Quality Standard'!$B$8,0,$D$29,1,1),1,0) -> 1 | K38: =IF('Quality Standard'!G29<=OFFSET('Quality Standard'!$B$8,0,$D$29,1,1),1,0) -> 1 | L38: =IF('Quality Standard'!H29<=OFFSET('Quality Standard'!$B$8,0,$D$29,1,1),1,0) -> 1 | M38: =IF('Quality Standard'!I29<=OFFSET('Quality Standard'!$B$8,0,$D$29,1,1),1,0) -> 1 | N38: =IF('Quality Standard'!J29<=OFFSET('Quality Standard'!$B$8,0,$D$29,1,1),1,0) -> 1 | O38: =IF('Quality Standard'!K29<=OFFSET('Quality Standard'!$B$8,0,$D$29,1,1),1,0) -> 1 | P38: =IF('Quality Standard'!L29<=OFFSET('Quality Standard'!$B$8,0,$D$29,1,1),1,0) -> 1
A39: Selenium | B39: =UserInterface!K76 -> 0 | C39: mg/L | D39: 1 | E39: 25 | F39: =IF('Quality Standard'!B30<=OFFSET('Quality Standard'!$B$9,0,$D$29,1,1),1,0) -> 1 | G39: =IF('Quality Standard'!C30<=OFFSET('Quality Standard'!$B$9,0,$D$29,1,1),1,0) -> 1 | H39: =IF('Quality Standard'!D30<=OFFSET('Quality Standard'!$B$9,0,$D$29,1,1),1,0) -> 1 | I39: =IF('Quality Standard'!E30<=OFFSET('Quality Standard'!$B$9,0,$D$29,1,1),1,0) -> 1 | J39: =IF('Quality Standard'!F30<=OFFSET('Quality Standard'!$B$9,0,$D$29,1,1),1,0) -> 1 | K39: =IF('Quality Standard'!G30<=OFFSET('Quality Standard'!$B$9,0,$D$29,1,1),1,0) -> 1 | L39: =IF('Quality Standard'!H30<=OFFSET('Quality Standard'!$B$9,0,$D$29,1,1),1,0) -> 1 | M39: =IF('Quality Standard'!I30<=OFFSET('Quality Standard'!$B$9,0,$D$29,1,1),1,0) -> 1 | N39: =IF('Quality Standard'!J30<=OFFSET('Quality Standard'!$B$9,0,$D$29,1,1),1,0) -> 1 | O39: =IF('Quality Standard'!K30<=OFFSET('Quality Standard'!$B$9,0,$D$29,1,1),1,0) -> 1 | P39: =IF('Quality Standard'!L30<=OFFSET('Quality Standard'!$B$9,0,$D$29,1,1),1,0) -> 1
A41: Resources
A42: Chlorine | B42: =UserInterface!F90 -> Yes - Can be obtained within Community | C42: Scale | D42: =IF(B42="Yes - Can be obtained within Community", 4, IF(B42="Yes - Can be obtained within 10km from Community", 3, IF(B42 = "Yes - Can be obtained > 10km away in Country", 2,IF(B42 = "Yes - Can be obtained from other countries", 1,0)))) -> 4 | E42: 25 | F42: =IF($D42>='Requirements of Technology'!C3,1,0) -> 1 | G42: =IF($D42>='Requirements of Technology'!D3,1,0) -> 1 | H42: =IF($D42>='Requirements of Technology'!E3,1,0) -> 1 | I42: =IF($D42>='Requirements of Technology'!F3,1,0) -> 1 | J42: =IF($D42>='Requirements of Technology'!G3,1,0) -> 1 | K42: =IF($D42>='Requirements of Technology'!H3,1,0) -> 1 | L42: =IF($D42>='Requirements of Technology'!I3,1,0) -> 1 | M42: =IF($D42>='Requirements of Technology'!J3,1,0) -> 1 | N42: =IF($D42>='Requirements of Technology'!K3,1,0) -> 1 | O42: =IF($D42>='Requirements of Technology'!L3,1,0) -> 1 | P42: =IF($D42>='Requirements of Technology'!M3,1,0) -> 1
A43: PACl | B43: =UserInterface!F91 -> No - Cannot be obtained easily | C43: Scale | D43: =IF(B43="Yes - Can be obtained within Community", 4, IF(B43="Yes - Can be obtained within 10km from Community", 3, IF(B43 = "Yes - Can be obtained > 10km away in Country", 2,IF(B43 = "Yes - Can be obtained from other countries", 1,0)))) -> 0 | E43: 25 | F43: =IF($D43>='Requirements of Technology'!C4,1,0) -> 1 | G43: =IF($D43>='Requirements of Technology'!D4,1,0) -> 1 | H43: =IF($D43>='Requirements of Technology'!E4,1,0) -> 1 | I43: =IF($D43>='Requirements of Technology'!F4,1,0) -> 0 | J43: =IF($D43>='Requirements of Technology'!G4,1,0) -> 0 | K43: =IF($D43>='Requirements of Technology'!H4,1,0) -> 0 | L43: =IF($D43>='Requirements of Technology'!I4,1,0) -> 1 | M43: =IF($D43>='Requirements of Technology'!J4,1,0) -> 1 | N43: =IF($D43>='Requirements of Technology'!K4,1,0) -> 0 | O43: =IF($D43>='Requirements of Technology'!L4,1,0) -> 0 | P43: =IF($D43>='Requirements of Technology'!M4,1,0) -> 0
A44: Alum | B44: =UserInterface!F92 -> No - Cannot be obtained easily | C44: Scale | D44: 0 | E44: 25 | F44: =IF($D44>='Requirements of Technology'!C5,1,0) -> 1 | G44: =IF($D44>='Requirements of Technology'!D5,1,0) -> 1 | H44: =IF($D44>='Requirements of Technology'!E5,1,0) -> 1 | I44: =IF($D44>='Requirements of Technology'!F5,1,0) -> 0 | J44: =IF($D44>='Requirements of Technology'!G5,1,0) -> 0 | K44: =IF($D44>='Requirements of Technology'!H5,1,0) -> 0 | L44: =IF($D44>='Requirements of Technology'!I5,1,0) -> 1 | M44: =IF($D44>='Requirements of Technology'!J5,1,0) -> 1 | N44: =IF($D44>='Requirements of Technology'!K5,1,0) -> 0 | O44: =IF($D44>='Requirements of Technology'!L5,1,0) -> 0 | P44: =IF($D44>='Requirements of Technology'!M5,1,0) -> 0
A45: Ferric Chloride | B45: =UserInterface!F93 -> No - Cannot be obtained easily | C45: Scale | D45: 0 | E45: 25 | F45: =IF($D45>='Requirements of Technology'!C6,1,0) -> 1 | G45: =IF($D45>='Requirements of Technology'!D6,1,0) -> 1 | H45: =IF($D45>='Requirements of Technology'!E6,1,0) -> 1 | I45: =IF($D45>='Requirements of Technology'!F6,1,0) -> 0 | J45: =IF($D45>='Requirements of Technology'!G6,1,0) -> 0 | K45: =IF($D45>='Requirements of Technology'!H6,1,0) -> 0 | L45: =IF($D45>='Requirements of Technology'!I6,1,0) -> 1 | M45: =IF($D45>='Requirements of Technology'!J6,1,0) -> 1 | N45: =IF($D45>='Requirements of Technology'!K6,1,0) -> 0 | O45: =IF($D45>='Requirements of Technology'!L6,1,0) -> 0 | P45: =IF($D45>='Requirements of Technology'!M6,1,0) -> 0
A46: Sand | B46: =UserInterface!F94 -> Yes - Can be obtained within Community | C46: Scale | D46: 4 | E46: 25 | F46: =IF($D46>='Requirements of Technology'!C7,1,0) -> 1 | G46: =IF($D46>='Requirements of Technology'!D7,1,0) -> 1 | H46: =IF($D46>='Requirements of Technology'!E7,1,0) -> 1 | I46: =IF($D46>='Requirements of Technology'!F7,1,0) -> 1 | J46: =IF($D46>='Requirements of Technology'!G7,1,0) -> 1 | K46: =IF($D46>='Requirements of Technology'!H7,1,0) -> 1 | L46: =IF($D46>='Requirements of Technology'!I7,1,0) -> 1 | M46: =IF($D46>='Requirements of Technology'!J7,1,0) -> 1 | N46: =IF($D46>='Requirements of Technology'!K7,1,0) -> 1 | O46: =IF($D46>='Requirements of Technology'!L7,1,0) -> 1 | P46: =IF($D46>='Requirements of Technology'!M7,1,0) -> 1
A47: Gravel | B47: =UserInterface!F95 -> Yes - Can be obtained within Community | C47: Scale | D47: 4 | E47: 25 | F47: =IF($D47>='Requirements of Technology'!C8,1,0) -> 1 | G47: =IF($D47>='Requirements of Technology'!D8,1,0) -> 1 | H47: =IF($D47>='Requirements of Technology'!E8,1,0) -> 1 | I47: =IF($D47>='Requirements of Technology'!F8,1,0) -> 1 | J47: =IF($D47>='Requirements of Technology'!G8,1,0) -> 1 | K47: =IF($D47>='Requirements of Technology'!H8,1,0) -> 1 | L47: =IF($D47>='Requirements of Technology'!I8,1,0) -> 1 | M47: =IF($D47>='Requirements of Technology'!J8,1,0) -> 1 | N47: =IF($D47>='Requirements of Technology'!K8,1,0) -> 1 | O47: =IF($D47>='Requirements of Technology'!L8,1,0) -> 1 | P47: =IF($D47>='Requirements of Technology'!M8,1,0) -> 1
A48: Cement | B48: =UserInterface!F96 -> Yes - Can be obtained within Community | C48: Scale | D48: 4 | E48: 25 | F48: =IF($D48>='Requirements of Technology'!C9,1,0) -> 1 | G48: =IF($D48>='Requirements of Technology'!D9,1,0) -> 1 | H48: =IF($D48>='Requirements of Technology'!E9,1,0) -> 1 | I48: =IF($D48>='Requirements of Technology'!F9,1,0) -> 1 | J48: =IF($D48>='Requirements of Technology'!G9,1,0) -> 1 | K48: =IF($D48>='Requirements of Technology'!H9,1,0) -> 1 | L48: =IF($D48>='Requirements of Technology'!I9,1,0) -> 1 | M48: =IF($D48>='Requirements of Technology'!J9,1,0) -> 1 | N48: =IF($D48>='Requirements of Technology'!K9,1,0) -> 1 | O48: =IF($D48>='Requirements of Technology'!L9,1,0) -> 1 | P48: =IF($D48>='Requirements of Technology'!M9,1,0) -> 1
A49: Bricks | B49: =UserInterface!F97 -> Yes - Can be obtained within Community | C49: Scale | D49: 4 | E49: 25 | F49: =IF($D49>='Requirements of Technology'!C10,1,0) -> 1 | G49: =IF($D49>='Requirements of Technology'!D10,1,0) -> 1 | H49: =IF($D49>='Requirements of Technology'!E10,1,0) -> 1 | I49: =IF($D49>='Requirements of Technology'!F10,1,0) -> 1 | J49: =IF($D49>='Requirements of Technology'!G10,1,0) -> 1 | K49: =IF($D49>='Requirements of Technology'!H10,1,0) -> 1 | L49: =IF($D49>='Requirements of Technology'!I10,1,0) -> 1 | M49: =IF($D49>='Requirements of Technology'!J10,1,0) -> 1 | N49: =IF($D49>='Requirements of Technology'!K10,1,0) -> 1 | O49: =IF($D49>='Requirements of Technology'!L10,1,0) -> 1 | P49: =IF($D49>='Requirements of Technology'!M10,1,0) -> 1
A50: PVC Pipings | B50: =UserInterface!F98 -> Yes - Can be obtained within Community | C50: Scale | D50: 4 | E50: 25 | F50: =IF($D50>='Requirements of Technology'!C11,1,0) -> 1 | G50: =IF($D50>='Requirements of Technology'!D11,1,0) -> 1 | H50: =IF($D50>='Requirements of Technology'!E11,1,0) -> 1 | I50: =IF($D50>='Requirements of Technology'!F11,1,0) -> 1 | J50: =IF($D50>='Requirements of Technology'!G11,1,0) -> 1 | K50: =IF($D50>='Requirements of Technology'!H11,1,0) -> 1 | L50: =IF($D50>='Requirements of Technology'!I11,1,0) -> 1 | M50: =IF($D50>='Requirements of Technology'!J11,1,0) -> 1 | N50: =IF($D50>='Requirements of Technology'!K11,1,0) -> 1 | O50: =IF($D50>='Requirements of Technology'!L11,1,0) -> 1 | P50: =IF($D50>='Requirements of Technology'!M11,1,0) -> 1
A51: Float Valves | B51: =UserInterface!F99 -> Yes - Can be obtained within Community | C51: Scale | D51: 4 | E51: 25 | F51: =IF($D51>='Requirements of Technology'!C12,1,0) -> 1 | G51: =IF($D51>='Requirements of Technology'!D12,1,0) -> 1 | H51: =IF($D51>='Requirements of Technology'!E12,1,0) -> 1 | I51: =IF($D51>='Requirements of Technology'!F12,1,0) -> 1 | J51: =IF($D51>='Requirements of Technology'!G12,1,0) -> 1 | K51: =IF($D51>='Requirements of Technology'!H12,1,0) -> 1 | L51: =IF($D51>='Requirements of Technology'!I12,1,0) -> 1 | M51: =IF($D51>='Requirements of Technology'!J12,1,0) -> 1 | N51: =IF($D51>='Requirements of Technology'!K12,1,0) -> 1 | O51: =IF($D51>='Requirements of Technology'!L12,1,0) -> 1 | P51: =IF($D51>='Requirements of Technology'!M12,1,0) -> 1
A52: Electrical Supply | B52: =UserInterface!F101 -> Yes | C52: Boolean | D52: =IF(B52="Yes",1,0) -> 1 | E52: 25 | F52: =IF($D52>='Requirements of Technology'!C13,1,0) -> 1 | G52: =IF($D52>='Requirements of Technology'!D13,1,0) -> 1 | H52: =IF($D52>='Requirements of Technology'!E13,1,0) -> 1 | I52: =IF($D52>='Requirements of Technology'!F13,1,0) -> 1 | J52: =IF($D52>='Requirements of Technology'!G13,1,0) -> 1 | K52: =IF($D52>='Requirements of Technology'!H13,1,0) -> 1 | L52: =IF($D52>='Requirements of Technology'!I13,1,0) -> 1 | M52: =IF($D52>='Requirements of Technology'!J13,1,0) -> 1 | N52: =IF($D52>='Requirements of Technology'!K13,1,0) -> 1 | O52: =IF($D52>='Requirements of Technology'!L13,1,0) -> 1 | P52: =IF($D52>='Requirements of Technology'!M13,1,0) -> 1
A53: Masons Skill Level | B53: =UserInterface!J105 -> 1 - Basic Skills | C53: Scale | D53: =VALUE(LEFT(B53,1)) -> 1 | E53: 25 | F53: =IF($D53>='Requirements of Technology'!C14,1,0) -> 1 | G53: =IF($D53>='Requirements of Technology'!D14,1,0) -> 1 | H53: =IF($D53>='Requirements of Technology'!E14,1,0) -> 1 | I53: =IF($D53>='Requirements of Technology'!F14,1,0) -> 1 | J53: =IF($D53>='Requirements of Technology'!G14,1,0) -> 1 | K53: =IF($D53>='Requirements of Technology'!H14,1,0) -> 1 | L53: =IF($D53>='Requirements of Technology'!I14,1,0) -> 1 | M53: =IF($D53>='Requirements of Technology'!J14,1,0) -> 1 | N53: =IF($D53>='Requirements of Technology'!K14,1,0) -> 1 | O53: =IF($D53>='Requirements of Technology'!L14,1,0) -> 1 | P53: =IF($D53>='Requirements of Technology'!M14,1,0) -> 1
A54: Carpenters Skill Level | B54: =UserInterface!J106 -> 3 | C54: Scale | D54: =VALUE(LEFT(B54,1)) -> 3 | E54: 25 | F54: =IF($D54>='Requirements of Technology'!C15,1,0) -> 1 | G54: =IF($D54>='Requirements of Technology'!D15,1,0) -> 1 | H54: =IF($D54>='Requirements of Technology'!E15,1,0) -> 1 | I54: =IF($D54>='Requirements of Technology'!F15,1,0) -> 1 | J54: =IF($D54>='Requirements of Technology'!G15,1,0) -> 1 | K54: =IF($D54>='Requirements of Technology'!H15,1,0) -> 1 | L54: =IF($D54>='Requirements of Technology'!I15,1,0) -> 1 | M54: =IF($D54>='Requirements of Technology'!J15,1,0) -> 1 | N54: =IF($D54>='Requirements of Technology'!K15,1,0) -> 1 | O54: =IF($D54>='Requirements of Technology'!L15,1,0) -> 1 | P54: =IF($D54>='Requirements of Technology'!M15,1,0) -> 1
A55: Metal Workers Skill Level | B55: =UserInterface!J107 -> 5 - Expert Skills | C55: Scale | D55: 5 | E55: 25 | F55: =IF($D55>='Requirements of Technology'!C16,1,0) -> 1 | G55: =IF($D55>='Requirements of Technology'!D16,1,0) -> 1 | H55: =IF($D55>='Requirements of Technology'!E16,1,0) -> 1 | I55: =IF($D55>='Requirements of Technology'!F16,1,0) -> 1 | J55: =IF($D55>='Requirements of Technology'!G16,1,0) -> 1 | K55: =IF($D55>='Requirements of Technology'!H16,1,0) -> 1 | L55: =IF($D55>='Requirements of Technology'!I16,1,0) -> 1 | M55: =IF($D55>='Requirements of Technology'!J16,1,0) -> 1 | N55: =IF($D55>='Requirements of Technology'!K16,1,0) -> 1 | O55: =IF($D55>='Requirements of Technology'!L16,1,0) -> 1 | P55: =IF($D55>='Requirements of Technology'!M16,1,0) -> 1
A56: Local Manpower Skill Level | B56: =UserInterface!J109 -> 2 | C56: Scale | D56: 2 | E56: 25 | F56: =IF($D56>='Requirements of Technology'!C17,1,0) -> 1 | G56: =IF($D56>='Requirements of Technology'!D17,1,0) -> 1 | H56: =IF($D56>='Requirements of Technology'!E17,1,0) -> 1 | I56: =IF($D56>='Requirements of Technology'!F17,1,0) -> 0 | J56: =IF($D56>='Requirements of Technology'!G17,1,0) -> 0 | K56: =IF($D56>='Requirements of Technology'!H17,1,0) -> 0 | L56: =IF($D56>='Requirements of Technology'!I17,1,0) -> 1 | M56: =IF($D56>='Requirements of Technology'!J17,1,0) -> 1 | N56: =IF($D56>='Requirements of Technology'!K17,1,0) -> 0 | O56: =IF($D56>='Requirements of Technology'!L17,1,0) -> 0 | P56: =IF($D56>='Requirements of Technology'!M17,1,0) -> 0
A58: Community Preferences
A59: Restriction 1 | B59: =UserInterface!B119 -> None | C59: Technology | D59: =VLOOKUP(B59,Data!$C$15:$D$20,2,FALSE) -> 0 | E59: =IF(D59>0,50,0) -> 0 | F59: =VLOOKUP($D59,'Requirements of Technology'!$A$21:$M$26,3,FALSE) -> 0 | G59: =VLOOKUP($D59,'Requirements of Technology'!$A$21:$M$26,4,FALSE) -> 0 | H59: =VLOOKUP($D59,'Requirements of Technology'!$A$21:$M$26,5,FALSE) -> 0 | I59: =VLOOKUP($D59,'Requirements of Technology'!$A$21:$M$26,6,FALSE) -> 0 | J59: =VLOOKUP($D59,'Requirements of Technology'!$A$21:$M$26,7,FALSE) -> 0 | K59: =VLOOKUP($D59,'Requirements of Technology'!$A$21:$M$26,8,FALSE) -> 0 | L59: =VLOOKUP($D59,'Requirements of Technology'!$A$21:$M$26,9,FALSE) -> 0 | M59: =VLOOKUP($D59,'Requirements of Technology'!$A$21:$M$26,10,FALSE) -> 0 | N59: =VLOOKUP($D59,'Requirements of Technology'!$A$21:$M$26,11,FALSE) -> 0 | O59: =VLOOKUP($D59,'Requirements of Technology'!$A$21:$M$26,12,FALSE) -> 0 | P59: =VLOOKUP($D59,'Requirements of Technology'!$A$21:$M$26,13,FALSE) -> 0
A60: Restriction 2 | B60: =UserInterface!D119 -> None | C60: Technology | D60: =VLOOKUP(B60,Data!$C$15:$D$20,2,FALSE) -> 0 | E60: =IF(D60>0,50,0) -> 0 | F60: =VLOOKUP($D60,'Requirements of Technology'!$A$21:$M$26,3,FALSE) -> 0 | G60: =VLOOKUP($D60,'Requirements of Technology'!$A$21:$M$26,4,FALSE) -> 0 | H60: =VLOOKUP($D60,'Requirements of Technology'!$A$21:$M$26,5,FALSE) -> 0 | I60: =VLOOKUP($D60,'Requirements of Technology'!$A$21:$M$26,6,FALSE) -> 0 | J60: =VLOOKUP($D60,'Requirements of Technology'!$A$21:$M$26,7,FALSE) -> 0 | K60: =VLOOKUP($D60,'Requirements of Technology'!$A$21:$M$26,8,FALSE) -> 0 | L60: =VLOOKUP($D60,'Requirements of Technology'!$A$21:$M$26,9,FALSE) -> 0 | M60: =VLOOKUP($D60,'Requirements of Technology'!$A$21:$M$26,10,FALSE) -> 0 | N60: =VLOOKUP($D60,'Requirements of Technology'!$A$21:$M$26,11,FALSE) -> 0 | O60: =VLOOKUP($D60,'Requirements of Technology'!$A$21:$M$26,12,FALSE) -> 0 | P60: =VLOOKUP($D60,'Requirements of Technology'!$A$21:$M$26,13,FALSE) -> 0
A61: Restriction 3 | B61: =UserInterface!H119 -> None | C61: Technology | D61: =VLOOKUP(B61,Data!$C$15:$D$20,2,FALSE) -> 0 | E61: =IF(D61>0,50,0) -> 0 | F61: =VLOOKUP($D61,'Requirements of Technology'!$A$21:$M$26,3,FALSE) -> 0 | G61: =VLOOKUP($D61,'Requirements of Technology'!$A$21:$M$26,4,FALSE) -> 0 | H61: =VLOOKUP($D61,'Requirements of Technology'!$A$21:$M$26,5,FALSE) -> 0 | I61: =VLOOKUP($D61,'Requirements of Technology'!$A$21:$M$26,6,FALSE) -> 0 | J61: =VLOOKUP($D61,'Requirements of Technology'!$A$21:$M$26,7,FALSE) -> 0 | K61: =VLOOKUP($D61,'Requirements of Technology'!$A$21:$M$26,8,FALSE) -> 0 | L61: =VLOOKUP($D61,'Requirements of Technology'!$A$21:$M$26,9,FALSE) -> 0 | M61: =VLOOKUP($D61,'Requirements of Technology'!$A$21:$M$26,10,FALSE) -> 0 | N61: =VLOOKUP($D61,'Requirements of Technology'!$A$21:$M$26,11,FALSE) -> 0 | O61: =VLOOKUP($D61,'Requirements of Technology'!$A$21:$M$26,12,FALSE) -> 0 | P61: =VLOOKUP($D61,'Requirements of Technology'!$A$21:$M$26,13,FALSE) -> 0
A62: Taste Importance Scale | B62: =UserInterface!J121 -> 3 | C62: Scale | D62: =LEFT(B62,1) -> 3 | E62: =MAX(0,(D62-1))*12.5 -> 25 | F62: 0 | G62: 0 | H62: 0 | I62: 0 | J62: 0 | K62: 0 | L62: 0 | M62: 0 | N62: 0 | O62: 0 | P62: 0
A63: Smell Importance Scale | B63: =UserInterface!J122 -> 4 | C63: Scale | D63: =LEFT(B63,1) -> 4 | E63: =MAX(0,(D63-1))*12.5 -> 37.5 | F63: 0 | G63: 0 | H63: 0 | I63: 0 | J63: 0 | K63: 0 | L63: 0 | M63: 0 | N63: 0 | O63: 0 | P63: 0
A64: Appearance Importance Scale | B64: =UserInterface!J123 -> 4 | C64: Scale | D64: 4 | E64: =MAX(0,(D64-1))*12.5 -> 37.5 | F64: 0 | G64: 0 | H64: 0 | I64: 1 | J64: 1 | K64: 1 | L64: 0 | M64: 0 | N64: 1 | O64: 1 | P64: 1
A66: Costs
A67: Capital Cost | B67: NIL | E67: 30 | F67: 0.9 | G67: 0.75 | H67: 0.45 | I67: 0.7 | J67: 0.4 | K67: 0.15 | L67: =G67+3% -> 0.78 | M67: =H67+3% -> 0.48 | N67: 0.73 | O67: 0.43 | P67: 0.18
A68: Operating Cost | B68: NIL | E68: 70 | F68: 1 | G68: 0.4 | H68: 0.25 | I68: 0.3 | J68: 0.78 | K68: 0.75 | L68: 0.45 | M68: 0.28 | N68: 0.4 | O68: 0.81 | P68: 0.78

Sheet Requirements of Technology (hidden)
C1: Option 1: Chlorination | D1: Option 2: Stacked Rapid Sand Filtration + Chlorination | E1: Option 3: Roughing Filter + Stacked Rapid Sand Filtration + Chlorination | F1: Option 4: Direct Filtration + Chlorination | G1: Option 5: Coagulation + Flocculation + Sedimentation + Chlorination | H1: Option 6: Coagulation + Flocculation + Sedimentation + Stacked Rapid Sand Filtration + Chlorination | I1: Option 7: Stacked Rapid Sand Filtration | J1: Option 8: Roughing Filter + Stacked Rapid Sand Filtration | K1: Option 9: Coagulation + Flocculation + Stacked Rapid Sand Filtration | L1: Option 10: Coagulation + Flocculation + Sedimentation | M1: Option 11: Coagulation + Flocculation + Sedimentation + Stacked Rapid Sand Filtration
B2: Resources Requirements
B3: Chlorine | C3: 1 | D3: 1 | E3: 1 | F3: 1 | G3: 1 | H3: 1 | I3: 0 | J3: 0 | K3: 0 | L3: 0 | M3: 0
B4: PACl | C4: 0 | D4: 0 | E4: 0 | F4: 1 | G4: 1 | H4: 1 | I4: 0 | J4: 0 | K4: 1 | L4: 1 | M4: 1
B5: Alum | C5: 0 | D5: 0 | E5: 0 | F5: 1 | G5: 1 | H5: 1 | I5: 0 | J5: 0 | K5: 1 | L5: 1 | M5: 1
B6: Ferric Chloride | C6: 0 | D6: 0 | E6: 0 | F6: 1 | G6: 1 | H6: 1 | I6: 0 | J6: 0 | K6: 1 | L6: 1 | M6: 1
B7: Sand | C7: 0 | D7: 1 | E7: 1 | F7: 1 | G7: 1 | H7: 1 | I7: 1 | J7: 1 | K7: 1 | L7: 1 | M7: 1
B8: Gravel | C8: 0 | D8: 1 | E8: 1 | F8: 1 | G8: 1 | H8: 1 | I8: 1 | J8: 1 | K8: 1 | L8: 1 | M8: 1
B9: Cement | C9: 0 | D9: 1 | E9: 1 | F9: 1 | G9: 1 | H9: 1 | I9: 1 | J9: 1 | K9: 1 | L9: 1 | M9: 1
B10: Bricks | C10: 0 | D10: 1 | E10: 1 | F10: 1 | G10: 1 | H10: 1 | I10: 1 | J10: 1 | K10: 1 | L10: 1 | M10: 1
B11: PVC Pipings | C11: 1 | D11: 1 | E11: 1 | F11: 1 | G11: 1 | H11: 1 | I11: 1 | J11: 1 | K11: 1 | L11: 1 | M11: 1
B12: Float Valves | C12: 1 | D12: 1 | E12: 1 | F12: 1 | G12: 1 | H12: 1 | I12: 1 | J12: 1 | K12: 1 | L12: 1 | M12: 1
B13: Electrical Supply | C13: 1 | D13: 1 | E13: 1 | F13: 1 | G13: 1 | H13: 1 | I13: 1 | J13: 1 | K13: 1 | L13: 1 | M13: 1
B14: Masons | C14: 0 | D14: 1 | E14: 1 | F14: 1 | G14: 1 | H14: 1 | I14: 1 | J14: 1 | K14: 1 | L14: 1 | M14: 1
B15: Carpenters | C15: 0 | D15: 1 | E15: 1 | F15: 1 | G15: 1 | H15: 1 | I15: 1 | J15: 1 | K15: 1 | L15: 1 | M15: 1
B16: Metal Workers | C16: 0 | D16: 1 | E16: 1 | F16: 1 | G16: 1 | H16: 1 | I16: 1 | J16: 1 | K16: 1 | L16: 1 | M16: 1
B17: Local Manpower Skill Level | C17: 1 | D17: 2 | E17: 2 | F17: 3 | G17: 3 | H17: 3 | I17: 2 | J17: 2 | K17: 3 | L17: 3 | M17: 3
B18: Option Total score | C18: =SUMPRODUCT(C3:C12,Matrix!$E$42:$E$51)+SUM(Matrix!$E$52:$E$56) -> 200 | D18: =SUMPRODUCT(D3:D12,Matrix!$E$42:$E$51)+SUM(Matrix!$E$52:$E$56) -> 300 | E18: =SUMPRODUCT(E3:E12,Matrix!$E$42:$E$51)+SUM(Matrix!$E$52:$E$56) -> 300 | F18: =SUMPRODUCT(F3:F12,Matrix!$E$42:$E$51)+SUM(Matrix!$E$52:$E$56) -> 375 | G18: =SUMPRODUCT(G3:G12,Matrix!$E$42:$E$51)+SUM(Matrix!$E$52:$E$56) -> 375 | H18: =SUMPRODUCT(H3:H12,Matrix!$E$42:$E$51)+SUM(Matrix!$E$52:$E$56) -> 375 | I18: =SUMPRODUCT(I3:I12,Matrix!$E$42:$E$51)+SUM(Matrix!$E$52:$E$56) -> 275 | J18: =SUMPRODUCT(J3:J12,Matrix!$E$42:$E$51)+SUM(Matrix!$E$52:$E$56) -> 275 | K18: =SUMPRODUCT(K3:K12,Matrix!$E$42:$E$51)+SUM(Matrix!$E$52:$E$56) -> 350 | L18: =SUMPRODUCT(L3:L12,Matrix!$E$42:$E$51)+SUM(Matrix!$E$52:$E$56) -> 350 | M18: =SUMPRODUCT(M3:M12,Matrix!$E$42:$E$51)+SUM(Matrix!$E$52:$E$56) -> 350
A20: Index | B20: Restriction
A21: 0 | B21: None | C21: 0 | D21: 0 | E21: 0 | F21: 0 | G21: 0 | H21: 0 | I21: 0 | J21: 0 | K21: 0 | L21: 0 | M21: 0
A22: 1 | B22: Chlorination | C22: -1 | D22: -1 | E22: -1 | F22: -1 | G22: -1 | H22: -1 | I22: 0 | J22: 0 | K22: 0 | L22: 0 | M22: 0
A23: 2 | B23: Coagulation | C23: 0 | D23: 0 | E23: 0 | F23: -1 | G23: -1 | H23: -1 | I23: 0 | J23: 0 | K23: -1 | L23: -1 | M23: -1
A24: 3 | B24: Flocculation | C24: 0 | D24: 0 | E24: 0 | F24: -1 | G24: -1 | H24: -1 | I24: 0 | J24: 0 | K24: -1 | L24: -1 | M24: -1
A25: 4 | B25: Sedimentation | C25: 0 | D25: 0 | E25: 0 | F25: 0 | G25: -1 | H25: -1 | I25: 0 | J25: 0 | K25: 0 | L25: -1 | M25: -1
A26: 5 | B26: Stacked Rapid Sand Filtration | C26: 0 | D26: -1 | E26: -1 | F26: -1 | G26: 0 | H26: -1 | I26: -1 | J26: -1 | K26: -1 | L26: 0 | M26: -1

Sheet Quality Standard (hidden)
B1: 1 - WHO | C1: 2 - US-EPA | D1: 3- Local Standards | E1: Units | F1: Unit Treatment Process 1: Chlorination | G1: Unit Treatment Process 2: Stacked Rapid Sand Filtration | H1: Unit Treatment Process 3: Coagulation, Floccuation and Sedimentation | I1: Unit Treatment Process 4: Coagulation, Flocculation and Stacked Rapid Sand Filtration | J1: Unit Treatment Process 5: Roughing Filter
A2: Turbidity | B2: 5 | C2: 0.3 | D2: =UserInterface!D73 -> 0 | E2: NTU | F2: 0 | G2: 0.7 | H2: =AVERAGE(80%,89%) -> 0.845 | I2: 0.97 | J2: =AVERAGE(60%,90%) -> 0.75
A3: Protozoa: Cryptosporidium | B3: =1.3*10^-5 -> 1.3e-05 | C3: 0 | D3: =UserInterface!D78 -> 0 | E3: Organisms/Liter | F3: 0 | G3: 0.7 | H3: =AVERAGE(90%,95%) -> 0.925 | I3: 0.999 | J3: =AVERAGE(60%,90%) -> 0.75
A4: Bacteria: Total Coliform | B4: 0 | C4: 0 | D4: =UserInterface!D79 -> 0 | E4: Organisms/Liter | F4: 0.999 | G4: =AVERAGE(1%,50%) -> 0.255 | H4: =AVERAGE(90%,95%) -> 0.925 | I4: 0.96 | J4: =AVERAGE(93%,99.5%) -> 0.9625
A5: Virus: Rotavirus | B5: =1.1*10^-5 -> 1.1e-05 | C5: 0 | D5: =UserInterface!D80 -> 0 | E5: Organisms/Liter | F5: 0.999 | G5: =AVERAGE(1%,50%) -> 0.255 | H5: 0.925 | I5: 0.874 | J5: 0
A6: Cadmium | B6: 0.003 | C6: 0.005 | D6: =UserInterface!K73 -> 0 | E6: mg/L | F6: 0 | G6: 0 | H6: 0.7 | I6: 0.7 | J6: 0
A7: Total Chromium | B7: 0.05 | C7: 0.1 | D7: =UserInterface!K74 -> 0 | E7: mg/L | F7: 0 | G7: 0 | H7: 0.9 | I7: 0.9 | J7: 0
A8: Mercury | B8: 0.006 | C8: 0.002 | D8: =UserInterface!K75 -> 0 | E8: mg/L | F8: 0 | G8: 0 | H8: 0.7 | I8: 0.7 | J8: 0
A9: Selenium | B9: 0.04 | C9: 0.05 | D9: =UserInterface!K76 -> 0 | E9: mg/L | F9: 0 | G9: 0 | H9: =AVERAGE(40%,80%) -> 0.6 | I9: =AVERAGE(40%,80%) -> 0.6 | J9: 0
A12: Removal Efficiencies | B12: Option 1: Chlorination | C12: Option 2: Stacked Rapid Sand Filtration + Chlorination | D12: Option 3: Roughing Filter + Stacked Rapid Sand Filtration + Chlorination | E12: Option 4: Coagulation + Flocculation + Stacked Rapid Sand Filtration + Chlorination | F12: Option 5: Coagulation + Flocculation + Sedimentation + Chlorination | G12: Option 6: Coagulation + Flocculation + Sedimentation + Stacked Rapid Sand Filtration + Chlorination | H12: Option 7: Stacked Rapid Sand Filtration | I12: Option 8: Roughing Filter + Stacked Rapid Sand Filtration | J12: Option 9: Coagulation + Flocculation + Stacked Rapid Sand Filtration | K12: Option 10: Coagulation + Flocculation + Sedimentation | L12: Option 11: Coagulation + Flocculation + Sedimentation + Stacked Rapid Sand Filtration
A13: Turbidity | B13: =F2 -> 0 | C13: =100%-(100%-G2)*(100%-F2) -> 0.7 | D13: =100%-(100%-J2)*(100%-G2)*(100%-F2) -> 0.925 | E13: =100%-(100%-I2)*(100%-F2) -> 0.97 | F13: =100%-(100%-H2)*(100%-F2) -> 0.845 | G13: =100%-(100%-H2)*(100%-G2)*(100%-F2) -> 0.9535 | H13: =G2 -> 0.7 | I13: =100%-(100%-J2)*(100%-G2) -> 0.925 | J13: =I2 -> 0.97 | K13: =H2 -> 0.845 | L13: =100%-(100%-H2)*(100%-G2) -> 0.9535
A14: Protozoa: Cryptosporidium | B14: 0 | C14: 0.7 | D14: 0.925 | E14: 0.999 | F14: 0.925 | G14: 0.9775 | H14: =G3 -> 0.7 | I14: =100%-(100%-J3)*(100%-G3) -> 0.925 | J14: =I3 -> 0.999 | K14: =H3 -> 0.925 | L14: =100%-(100%-H3)*(100%-G3) -> 0.9775
A15: Bacteria: Total Coliform | B15: 0.999 | C15: 0.999255 | D15: 0.9999720625 | E15: 0.99996 | F15: 0.999925 | G15: 0.999944125 | H15: 0.255 | I15: 0.9720625 | J15: 0.96 | K15: 0.925 | L15: 0.944125
A16: Virus: Rotavirus | B16: 0.999 | C16: 0.999255 | D16: 0.999255 | E16: 0.999874 | F16: 0.999925 | G16: 0.999944125 | H16: 0.255 | I16: 0.255 | J16: 0.874 | K16: 0.925 | L16: 0.944125
A17: Cadmium | B17: 0 | C17: 0 | D17: 0 | E17: 0.7 | F17: 0.7 | G17: 0.7 | H17: 0 | I17: 0 | J17: 0.7 | K17: 0.7 | L17: 0.7
A18: Total Chromium | B18: 0 | C18: 0 | D18: 0 | E18: 0.9 | F18: 0.9 | G18: 0.9 | H18: 0 | I18: 0 | J18: 0.9 | K18: 0.9 | L18: 0.9
A19: Mercury | B19: 0 | C19: 0 | D19: 0 | E19: 0.7 | F19: 0.7 | G19: 0.7 | H19: 0 | I19: 0 | J19: 0.7 | K19: 0.7 | L19: 0.7
A20: Selenium | B20: 0 | C20: 0 | D20: 0 | E20: 0.6 | F20: 0.6 | G20: 0.6 | H20: 0 | I20: 0 | J20: 0.6 | K20: 0.6 | L20: 0.6
A22: Calculated Values from User Inputs | B22: Option 1: Chlorination | C22: Option 2: Stacked Rapid Sand Filtration + Chlorination | D22: Option 3: Roughing Filter + Stacked Rapid Sand Filtration + Chlorination | E22: Option 4: Coagulation + Flocculation + Stacked Rapid Sand Filtration + Chlorination | F22: Option 5: Coagulation + Flocculation + Sedimentation + Chlorination | G22: Option 6: Coagulation + Flocculation + Sedimentation + Stacked Rapid Sand Filtration + Chlorination | H22: Option 7: Stacked Rapid Sand Filtration | I22: Option 8: Roughing Filter + Stacked Rapid Sand Filtration | J22: Option 9: Coagulation + Flocculation + Stacked Rapid Sand Filtration | K22: Option 10: Coagulation + Flocculation + Sedimentation | L22: Option 11: Coagulation + Flocculation + Sedimentation + Stacked Rapid Sand Filtration
A23: Turbidity | B23: =(100%-B13)*Matrix!$B$9 -> 25 | C23: =(100%-C13)*Matrix!$B$9 -> 7.5 | D23: =(100%-D13)*Matrix!$B$9 -> 1.875 | E23: =(100%-E13)*Matrix!$B$9 -> 0.75 | F23: =(100%-F13)*Matrix!$B$9 -> 3.875 | G23: =(100%-G13)*Matrix!$B$9 -> 1.1625 | H23: =(100%-H13)*Matrix!$B$9 -> 7.5 | I23: =(100%-I13)*Matrix!$B$9 -> 1.875 | J23: =(100%-J13)*Matrix!$B$9 -> 0.75 | K23: =(100%-K13)*Matrix!$B$9 -> 3.875 | L23: =(100%-L13)*Matrix!$B$9 -> 1.1625
A24: Protozoa: Cryptosporidium | B24: =(100%-B14)*Matrix!$B15 -> 0.0001 | C24: =(100%-C14)*Matrix!$B15 -> 3e-05 | D24: =(100%-D14)*Matrix!$B15 -> 7.5e-06 | E24: =(100%-E14)*Matrix!$B15 -> 1e-07 | F24: =(100%-F14)*Matrix!$B15 -> 7.5e-06 | G24: =(100%-G14)*Matrix!$B15 -> 2.25e-06 | H24: =(100%-H14)*Matrix!$B15 -> 3e-05 | I24: =(100%-I14)*Matrix!$B15 -> 7.5e-06 | J24: =(100%-J14)*Matrix!$B15 -> 1e-07 | K24: =(100%-K14)*Matrix!$B15 -> 7.5e-06 | L24: =(100%-L14)*Matrix!$B15 -> 2.25e-06
A25: Bacteria: Total Coliform | B25: =(100%-B15)*Matrix!$B16 -> 2.2e-07 | C25: =(100%-C15)*Matrix!$B16 -> 1.639e-07 | D25: =(100%-D15)*Matrix!$B16 -> 6.14625e-09 | E25: =(100%-E15)*Matrix!$B16 -> 8.8e-09 | F25: =(100%-F15)*Matrix!$B16 -> 1.65e-08 | G25: =(100%-G15)*Matrix!$B16 -> 1.22925e-08 | H25: =(100%-H15)*Matrix!$B16 -> 0.0001639 | I25: =(100%-I15)*Matrix!$B16 -> 6.14625e-06 | J25: =(100%-J15)*Matrix!$B16 -> 8.8e-06 | K25: =(100%-K15)*Matrix!$B16 -> 1.65e-05 | L25: =(100%-L15)*Matrix!$B16 -> 1.22925e-05
A26: Virus: Rotavirus | B26: =(100%-B16)*Matrix!$B17 -> 1.3e-07 | C26: =(100%-C16)*Matrix!$B17 -> 9.685e-08 | D26: =(100%-D16)*Matrix!$B17 -> 9.685e-08 | E26: =(100%-E16)*Matrix!$B17 -> 1.638e-08 | F26: =(100%-F16)*Matrix!$B17 -> 9.75e-09 | G26: =(100%-G16)*Matrix!$B17 -> 7.26375e-09 | H26: =(100%-H16)*Matrix!$B17 -> 9.685e-05 | I26: =(100%-I16)*Matrix!$B17 -> 9.685e-05 | J26: =(100%-J16)*Matrix!$B17 -> 1.638e-05 | K26: =(100%-K16)*Matrix!$B17 -> 9.75e-06 | L26: =(100%-L16)*Matrix!$B17 -> 7.26375e-06
A27: Cadmium | B27: =(100%-B17)*Matrix!$B23 -> 0 | C27: =(100%-C17)*Matrix!$B23 -> 0 | D27: =(100%-D17)*Matrix!$B23 -> 0 | E27: =(100%-E17)*Matrix!$B23 -> 0 | F27: =(100%-F17)*Matrix!$B23 -> 0 | G27: =(100%-G17)*Matrix!$B23 -> 0 | H27: =(100%-H17)*Matrix!$B23 -> 0 | I27: =(100%-I17)*Matrix!$B23 -> 0 | J27: =(100%-J17)*Matrix!$B23 -> 0 | K27: =(100%-K17)*Matrix!$B23 -> 0 | L27: =(100%-L17)*Matrix!$B23 -> 0
A28: Total Chromium | B28: =(100%-B18)*Matrix!$B24 -> 0 | C28: =(100%-C18)*Matrix!$B24 -> 0 | D28: =(100%-D18)*Matrix!$B24 -> 0 | E28: =(100%-E18)*Matrix!$B24 -> 0 | F28: =(100%-F18)*Matrix!$B24 -> 0 | G28: =(100%-G18)*Matrix!$B24 -> 0 | H28: =(100%-H18)*Matrix!$B24 -> 0 | I28: =(100%-I18)*Matrix!$B24 -> 0 | J28: =(100%-J18)*Matrix!$B24 -> 0 | K28: =(100%-K18)*Matrix!$B24 -> 0 | L28: =(100%-L18)*Matrix!$B24 -> 0
A29: Mercury | B29: =(100%-B19)*Matrix!$B26 -> 0 | C29: =(100%-C19)*Matrix!$B26 -> 0 | D29: =(100%-D19)*Matrix!$B26 -> 0 | E29: =(100%-E19)*Matrix!$B26 -> 0 | F29: =(100%-F19)*Matrix!$B26 -> 0 | G29: =(100%-G19)*Matrix!$B26 -> 0 | H29: =(100%-H19)*Matrix!$B26 -> 0 | I29: =(100%-I19)*Matrix!$B26 -> 0 | J29: =(100%-J19)*Matrix!$B26 -> 0 | K29: =(100%-K19)*Matrix!$B26 -> 0 | L29: =(100%-L19)*Matrix!$B26 -> 0
A30: Selenium | B30: =(100%-B20)*Matrix!$B27 -> 0 | C30: =(100%-C20)*Matrix!$B27 -> 0 | D30: =(100%-D20)*Matrix!$B27 -> 0 | E30: =(100%-E20)*Matrix!$B27 -> 0 | F30: =(100%-F20)*Matrix!$B27 -> 0 | G30: =(100%-G20)*Matrix!$B27 -> 0 | H30: =(100%-H20)*Matrix!$B27 -> 0 | I30: =(100%-I20)*Matrix!$B27 -> 0 | J30: =(100%-J20)*Matrix!$B27 -> 0 | K30: =(100%-K20)*Matrix!$B27 -> 0 | L30: =(100%-L20)*Matrix!$B27 -> 0

Sheet Evaluation (hidden)
A1: Score | B1: Option 1: Chlorination | C1: Option 2: Stacked Rapid Sand Filtration - Chlorination | D1: Option 3: Roughing Filter - Stacked Rapid Sand Filtration - Chlorination | E1: Option 4: Coagulation & Flocculation - Stacked Rapid Sand Filtration - Chlorination | F1: Option 5: Coagulation & Flocculation - Sedimentation - Chlorination | G1: Option 6: Coagulation & Flocculation - Sedimentation - Stacked Rapid Sand Filtration - Chlorination | H1: Option 7: Stacked Rapid Sand Filtration | I1: Option 8: Roughing Filter - Stacked Rapid Sand Filtration | J1: Option 9: Coagulation & Flocculation - Stacked Rapid Sand Filtration | K1: Option 10: Coagulation & Flocculation - Sedimentation | L1: Option 11: Coagulation & Flocculation - Sedimentation - Stacked Rapid Sand Filtration | M1: System Max Score | N1: Weightage (%)
A2: Contaminant Removal Ability Score | B2: =(SUMPRODUCT(Matrix!$E$9:$E$10,Matrix!F9:F10)+SUMPRODUCT(Matrix!$E$15:$E$17,Matrix!F15:F17)+SUMPRODUCT(Matrix!$D$18:$D$27,Matrix!$E$18:$E$27,Matrix!F18:F27))/$M$2*$N$2 -> 3.28125 | C2: =(SUMPRODUCT(Matrix!$E$9:$E$10,Matrix!G9:G10)+SUMPRODUCT(Matrix!$E$15:$E$17,Matrix!G15:G17)+SUMPRODUCT(Matrix!$D$18:$D$27,Matrix!$E$18:$E$27,Matrix!G18:G27))/$M$2*$N$2 -> 7.65625 | D2: =(SUMPRODUCT(Matrix!$E$9:$E$10,Matrix!H9:H10)+SUMPRODUCT(Matrix!$E$15:$E$17,Matrix!H15:H17)+SUMPRODUCT(Matrix!$D$18:$D$27,Matrix!$E$18:$E$27,Matrix!H18:H27))/$M$2*$N$2 -> 7.65625 | E2: =(SUMPRODUCT(Matrix!$E$9:$E$10,Matrix!I9:I10)+SUMPRODUCT(Matrix!$E$15:$E$17,Matrix!I15:I17)+SUMPRODUCT(Matrix!$D$18:$D$27,Matrix!$E$18:$E$27,Matrix!I18:I27))/$M$2*$N$2 -> 7.65625 | F2: =(SUMPRODUCT(Matrix!$E$9:$E$10,Matrix!J9:J10)+SUMPRODUCT(Matrix!$E$15:$E$17,Matrix!J15:J17)+SUMPRODUCT(Matrix!$D$18:$D$27,Matrix!$E$18:$E$27,Matrix!J18:J27))/$M$2*$N$2 -> 7.65625 | G2: =(SUMPRODUCT(Matrix!$E$9:$E$10,Matrix!K9:K10)+SUMPRODUCT(Matrix!$E$15:$E$17,Matrix!K15:K17)+SUMPRODUCT(Matrix!$D$18:$D$27,Matrix!$E$18:$E$27,Matrix!K18:K27))/$M$2*$N$2 -> 7.65625 | H2: =(SUMPRODUCT(Matrix!$E$9:$E$10,Matrix!L9:L10)+SUMPRODUCT(Matrix!$E$15:$E$17,Matrix!L15:L17)+SUMPRODUCT(Matrix!$D$18:$D$27,Matrix!$E$18:$E$27,Matrix!L18:L27))/$M$2*$N$2 -> 7.65625 | I2: =(SUMPRODUCT(Matrix!$E$9:$E$10,Matrix!M9:M10)+SUMPRODUCT(Matrix!$E$15:$E$17,Matrix!M15:M17)+SUMPRODUCT(Matrix!$D$18:$D$27,Matrix!$E$18:$E$27,Matrix!M18:M27))/$M$2*$N$2 -> 7.65625 | J2: =(SUMPRODUCT(Matrix!$E$9:$E$10,Matrix!N9:N10)+SUMPRODUCT(Matrix!$E$15:$E$17,Matrix!N15:N17)+SUMPRODUCT(Matrix!$D$18:$D$27,Matrix!$E$18:$E$27,Matrix!N18:N27))/$M$2*$N$2 -> 7.65625 | K2: =(SUMPRODUCT(Matrix!$E$9:$E$10,Matrix!O9:O10)+SUMPRODUCT(Matrix!$E$15:$E$17,Matrix!O15:O17)+SUMPRODUCT(Matrix!$D$18:$D$27,Matrix!$E$18:$E$27,Matrix!O18:O27))/$M$2*$N$2 -> 7.65625 | L2: =(SUMPRODUCT(Matrix!$E$9:$E$10,Matrix!P9:P10)+SUMPRODUCT(Matrix!$E$15:$E$17,Matrix!P15:P17)+SUMPRODUCT(Matrix!$D$18:$D$27,Matrix!$E$18:$E$27,Matrix!P18:P27))/$M$2*$N$2 -> 7.65625 | M2: =Matrix!E9+Matrix!E10+SUM(Matrix!E15:E39) -> 800 | N2: 35
A3: Actual Removal Performance Score | B3: =(Matrix!$E$30*Matrix!F30+SUMPRODUCT(Matrix!$E$33:$E$39,Matrix!F33:F39))/$M$3*$N$3 -> 11.66666667 | C3: =(Matrix!$E$30*Matrix!G30+SUMPRODUCT(Matrix!$E$33:$E$39,Matrix!G33:G39))/$M$3*$N$3 -> 11.66666667 | D3: =(Matrix!$E$30*Matrix!H30+SUMPRODUCT(Matrix!$E$33:$E$39,Matrix!H33:H39))/$M$3*$N$3 -> 32.66666667 | E3: =(Matrix!$E$30*Matrix!I30+SUMPRODUCT(Matrix!$E$33:$E$39,Matrix!I33:I39))/$M$3*$N$3 -> 32.66666667 | F3: =(Matrix!$E$30*Matrix!J30+SUMPRODUCT(Matrix!$E$33:$E$39,Matrix!J33:J39))/$M$3*$N$3 -> 32.66666667 | G3: =(Matrix!$E$30*Matrix!K30+SUMPRODUCT(Matrix!$E$33:$E$39,Matrix!K33:K39))/$M$3*$N$3 -> 32.66666667 | H3: =(Matrix!$E$30*Matrix!L30+SUMPRODUCT(Matrix!$E$33:$E$39,Matrix!L33:L39))/$M$3*$N$3 -> 9.333333333 | I3: =(Matrix!$E$30*Matrix!M30+SUMPRODUCT(Matrix!$E$33:$E$39,Matrix!M33:M39))/$M$3*$N$3 -> 30.33333333 | J3: =(Matrix!$E$30*Matrix!N30+SUMPRODUCT(Matrix!$E$33:$E$39,Matrix!N33:N39))/$M$3*$N$3 -> 30.33333333 | K3: =(Matrix!$E$30*Matrix!O30+SUMPRODUCT(Matrix!$E$33:$E$39,Matrix!O33:O39))/$M$3*$N$3 -> 32.66666667 | L3: =(Matrix!$E$30*Matrix!P30+SUMPRODUCT(Matrix!$E$33:$E$39,Matrix!P33:P39))/$M$3*$N$3 -> 32.66666667 | M3: =Matrix!E30+SUM(Matrix!E33:E39) -> 375 | N3: 35
A4: Resources Requirement Score | B4: =(SUMPRODUCT(Matrix!$D$42:$D$51/4,Matrix!$E$42:$E$51,Matrix!F42:F51,'Requirements of Technology'!C3:C12)+SUMPRODUCT(Matrix!$E$52:$E$56,Matrix!F52:F56))/'Requirements of Technology'!C18*Evaluation!$N$4 -> 10 | C4: =(SUMPRODUCT(Matrix!$D$42:$D$51/4,Matrix!$E$42:$E$51,Matrix!G42:G51,'Requirements of Technology'!D3:D12)+SUMPRODUCT(Matrix!$E$52:$E$56,Matrix!G52:G56))/'Requirements of Technology'!D18*Evaluation!$N$4 -> 10 | D4: =(SUMPRODUCT(Matrix!$D$42:$D$51/4,Matrix!$E$42:$E$51,Matrix!H42:H51,'Requirements of Technology'!E3:E12)+SUMPRODUCT(Matrix!$E$52:$E$56,Matrix!H52:H56))/'Requirements of Technology'!E18*Evaluation!$N$4 -> 10 | E4: =(SUMPRODUCT(Matrix!$D$42:$D$51/4,Matrix!$E$42:$E$51,Matrix!I42:I51,'Requirements of Technology'!F3:F12)+SUMPRODUCT(Matrix!$E$52:$E$56,Matrix!I52:I56))/'Requirements of Technology'!F18*Evaluation!$N$4 -> 7.333333333 | F4: =(SUMPRODUCT(Matrix!$D$42:$D$51/4,Matrix!$E$42:$E$51,Matrix!J42:J51,'Requirements of Technology'!G3:G12)+SUMPRODUCT(Matrix!$E$52:$E$56,Matrix!J52:J56))/'Requirements of Technology'!G18*Evaluation!$N$4 -> 7.333333333 | G4: =(SUMPRODUCT(Matrix!$D$42:$D$51/4,Matrix!$E$42:$E$51,Matrix!K42:K51,'Requirements of Technology'!H3:H12)+SUMPRODUCT(Matrix!$E$52:$E$56,Matrix!K52:K56))/'Requirements of Technology'!H18*Evaluation!$N$4 -> 7.333333333 | H4: =(SUMPRODUCT(Matrix!$D$42:$D$51/4,Matrix!$E$42:$E$51,Matrix!L42:L51,'Requirements of Technology'!I3:I12)+SUMPRODUCT(Matrix!$E$52:$E$56,Matrix!L52:L56))/'Requirements of Technology'!I18*Evaluation!$N$4 -> 10 | I4: =(SUMPRODUCT(Matrix!$D$42:$D$51/4,Matrix!$E$42:$E$51,Matrix!M42:M51,'Requirements of Technology'!J3:J12)+SUMPRODUCT(Matrix!$E$52:$E$56,Matrix!M52:M56))/'Requirements of Technology'!J18*Evaluation!$N$4 -> 10 | J4: =(SUMPRODUCT(Matrix!$D$42:$D$51/4,Matrix!$E$42:$E$51,Matrix!N42:N51,'Requirements of Technology'!K3:K12)+SUMPRODUCT(Matrix!$E$52:$E$56,Matrix!N52:N56))/'Requirements of Technology'!K18*Evaluation!$N$4 -> 7.142857143 | K4: =(SUMPRODUCT(Matrix!$D$42:$D$51/4,Matrix!$E$42:$E$51,Matrix!O42:O51,'Requirements of Technology'!L3:L12)+SUMPRODUCT(Matrix!$E$52:$E$56,Matrix!O52:O56))/'Requirements of Technology'!L18*Evaluation!$N$4 -> 7.142857143 | L4: =(SUMPRODUCT(Matrix!$D$42:$D$51/4,Matrix!$E$42:$E$51,Matrix!P42:P51,'Requirements of Technology'!M3:M12)+SUMPRODUCT(Matrix!$E$52:$E$56,Matrix!P52:P56))/'Requirements of Technology'!M18*Evaluation!$N$4 -> 7.142857143 | M4: Dependent | N4: 10
A5: Community Preferences Score | B5: =SUMPRODUCT(Matrix!$E$59:$E$64,Matrix!F59:F64)/$M$5*$N$5 -> 0 | C5: =SUMPRODUCT(Matrix!$E$59:$E$64,Matrix!G59:G64)/$M$5*$N$5 -> 0 | D5: =SUMPRODUCT(Matrix!$E$59:$E$64,Matrix!H59:H64)/$M$5*$N$5 -> 0 | E5: =SUMPRODUCT(Matrix!$E$59:$E$64,Matrix!I59:I64)/$M$5*$N$5 -> 1.875 | F5: =SUMPRODUCT(Matrix!$E$59:$E$64,Matrix!J59:J64)/$M$5*$N$5 -> 1.875 | G5: =SUMPRODUCT(Matrix!$E$59:$E$64,Matrix!K59:K64)/$M$5*$N$5 -> 1.875 | H5: =SUMPRODUCT(Matrix!$E$59:$E$64,Matrix!L59:L64)/$M$5*$N$5 -> 0 | I5: =SUMPRODUCT(Matrix!$E$59:$E$64,Matrix!M59:M64)/$M$5*$N$5 -> 0 | J5: =SUMPRODUCT(Matrix!$E$59:$E$64,Matrix!N59:N64)/$M$5*$N$5 -> 1.875 | K5: =SUMPRODUCT(Matrix!$E$59:$E$64,Matrix!O59:O64)/$M$5*$N$5 -> 1.875 | L5: =SUMPRODUCT(Matrix!$E$59:$E$64,Matrix!P59:P64)/$M$5*$N$5 -> 1.875 | M5: =SUM(Matrix!E59:E64) -> 100 | N5: 5
A6: Costs | B6: =SUMPRODUCT(Matrix!F67:F68,Matrix!$E$67:$E$68)/$M$6*$N$6 -> 14.55 | C6: =SUMPRODUCT(Matrix!G67:G68,Matrix!$E$67:$E$68)/$M$6*$N$6 -> 7.575 | D6: =SUMPRODUCT(Matrix!H67:H68,Matrix!$E$67:$E$68)/$M$6*$N$6 -> 4.65 | E6: =SUMPRODUCT(Matrix!I67:I68,Matrix!$E$67:$E$68)/$M$6*$N$6 -> 6.3 | F6: =SUMPRODUCT(Matrix!J67:J68,Matrix!$E$67:$E$68)/$M$6*$N$6 -> 9.99 | G6: =SUMPRODUCT(Matrix!K67:K68,Matrix!$E$67:$E$68)/$M$6*$N$6 -> 8.55 | H6: =SUMPRODUCT(Matrix!L67:L68,Matrix!$E$67:$E$68)/$M$6*$N$6 -> 8.235 | I6: =SUMPRODUCT(Matrix!M67:M68,Matrix!$E$67:$E$68)/$M$6*$N$6 -> 5.1 | J6: =SUMPRODUCT(Matrix!N67:N68,Matrix!$E$67:$E$68)/$M$6*$N$6 -> 7.485 | K6: =SUMPRODUCT(Matrix!O67:O68,Matrix!$E$67:$E$68)/$M$6*$N$6 -> 10.44 | L6: =SUMPRODUCT(Matrix!P67:P68,Matrix!$E$67:$E$68)/$M$6*$N$6 -> 9 | M6: =SUM(Matrix!E67:E68) -> 100 | N6: 15
A7: Percentage Score | B7: =SUM(B2:B6) -> 39.49791667 | C7: =SUM(C2:C6) -> 36.89791667 | D7: =SUM(D2:D6) -> 54.97291667 | E7: =SUM(E2:E6) -> 55.83125 | F7: =SUM(F2:F6)+4 -> 63.52125 | G7: =SUM(G2:G6) -> 58.08125 | H7: =SUM(H2:H6) -> 35.22458333 | I7: 53.08958333 | J7: 54.49244048 | K7: 59.78077381 | L7: 58.34077381 | M7: =SUM(M2:M6) -> 1375
B10: Score | C10: Rank | D10: Pre-Treatment | E10: Main Treatment 1 | F10: Main Treatment 2 | G10: Main Treatment 3 | H10: Disinfection
A11: =B1 -> Option 1: Chlorination | B11: =B7 -> 39.49791667 | C11: =RANK(B11,$B$11:$B$21) -> 9 | D11: =getPreTreatment(C11) -> PicNone | E11: =getMainTreatment1(C11) -> PicNone | F11: =getMainTreatment2(C11) -> PicNone | G11: =getMainTreatment3(C11) -> PicNone | H11: =getDisinfection(C11) -> PicChlorination
A12: =C1 -> Option 2: Stacked Rapid Sand Filtration - Chlorination | B12: =C7 -> 36.89791667 | C12: =RANK(B12,$B$11:$B$21) -> 10 | D12: =getPreTreatment(C12) -> PicNone | E12: =getMainTreatment1(C12) -> PicRapidSandFiltration | F12: =getMainTreatment2(C12) -> PicNone | G12: =getMainTreatment3(C12) -> PicNone | H12: =getDisinfection(C12) -> PicChlorination
A13: =D1 -> Option 3: Roughing Filter - Stacked Rapid Sand Filtration - Chlorination | B13: =D7 -> 54.97291667 | C13: 6 | D13: PicRoughingFilter | E13: =getMainTreatment1(C13) -> PicRapidSandFiltration | F13: =getMainTreatment2(C13) -> PicNone | G13: =getMainTreatment3(C13) -> PicNone | H13: PicChlorination
A14: =E1 -> Option 4: Coagulation & Flocculation - Stacked Rapid Sand Filtration - Chlorination | B14: =E7 -> 55.83125 | C14: 5 | D14: PicNone | E14: PicCoagulationAndFlocculation | F14: PicRapidSandFiltration | G14: PicNone | H14: =getDisinfection(C14) -> PicChlorination
A15: =F1 -> Option 5: Coagulation & Flocculation - Sedimentation - Chlorination | B15: =F7 -> 63.52125 | C15: 1 | D15: PicNone | E15: PicCoagulationAndFlocculation | F15: PicSedimentation | G15: PicNone | H15: PicChlorination
A16: =G1 -> Option 6: Coagulation & Flocculation - Sedimentation - Stacked Rapid Sand Filtration - Chlorination | B16: =G7 -> 58.08125 | C16: 4 | D16: PicNone | E16: PicCoagulationAndFlocculation | F16: PicSedimentation | G16: PicRapidSandFiltration | H16: PicChlorination
A17: =H1 -> Option 7: Stacked Rapid Sand Filtration | B17: =H7 -> 35.22458333 | C17: 11 | D17: PicNone | E17: PicRapidSandFiltration | F17: PicNone | G17: PicNone | H17: PicNone
A18: =I1 -> Option 8: Roughing Filter - Stacked Rapid Sand Filtration | B18: =I7 -> 53.08958333 | C18: 8 | D18: PicRoughingFilter | E18: PicRapidSandFiltration | F18: PicNone | G18: PicNone | H18: PicNone
A19: =J1 -> Option 9: Coagulation & Flocculation - Stacked Rapid Sand Filtration | B19: =J7 -> 54.49244048 | C19: 7 | D19: PicNone | E19: PicCoagulationAndFlocculation | F19: PicRapidSandFiltration | G19: PicNone | H19: PicNone
A20: =K1 -> Option 10: Coagulation & Flocculation - Sedimentation | B20: =K7 -> 59.78077381 | C20: 2 | D20: PicNone | E20: PicCoagulationAndFlocculation | F20: PicSedimentation | G20: PicNone | H20: PicNone
A21: =L1 -> Option 11: Coagulation & Flocculation - Sedimentation - Stacked Rapid Sand Filtration | B21: =L7 -> 58.34077381 | C21: 3 | D21: PicNone | E21: PicCoagulationAndFlocculation | F21: PicSedimentation | G21: PicRapidSandFiltration | H21: PicNone
A23: Ranked 1:
A24: =OFFSET(A11,MATCH(1,$C$11:$C$21,0)-1,0) -> Option 5: Coagulation & Flocculation - Sedimentation - Chlorination | B24: =OFFSET(B11,MATCH(1,$C$11:$C$21,0)-1,0) -> 63.52125 | C24: 1 | D24: PicNone | E24: PicCoagulationAndFlocculation | F24: PicSedimentation | G24: PicNone | H24: PicChlorination

Sheet Data (hidden)
A1: Boolean | C1: Source of Raw Water | E1: DryFluctuations | F1: WetFluctuations | H1: Color | J1: Treatment Standards
A2: Yes | C2: Groundwater | E2: 10 | F2: 110 | H2: Cloudy-white | J2: World Health Organization (WHO)
A3: No | C3: Lakes | E3: 20 | F3: 120 | H3: Yellow | J3: United States Environmental Protection Agency (US-EPA)
C4: Rain Water | E4: 30 | F4: 130 | H4: Brown
A5: Availability | C5: Reservoir | E5: 40 | F5: 140
A6: Yes - Can be obtained within Community | B6: 4 | C6: River | E6: 50 | F6: 150
A7: Yes - Can be obtained within 10km from Community | B7: 3 | C7: Spring Water | E7: 60 | F7: 160
A8: Yes - Can be obtained > 10km away in Country | B8: 2 | C8: Stream | E8: 70 | F8: 170
A9: Yes - Can be obtained from other countries | B9: 1 | C9: Well Water | E9: 80 | F9: 180
A10: No - Cannot be obtained easily | B10: 0 | E10: 90 | F10: 190
F11: ≥200
A14: Operator Skill Level | C14: Technologies | E14: Importance | F14: Turbidity Level | H14: Skill Level
A15: 1 - Basic Skills | C15: None | D15: 0 | E15: 1 - Not Important | F15: Picture 1 - 10 NTU | H15: 0 - No Skilled Workers Available
A16: 2 | C16: Chlorination | D16: 1 | E16: 2 | F16: Picture 2 - 25 NTU | H16: 1 - Basic Skills
A17: 3 | C17: Coagulation | D17: 2 | E17: 3 | F17: Picture 3 - 50 NTU | H17: 2
A18: 4 | C18: Flocculation | D18: 3 | E18: 4 | F18: Picture 4 - 100 NTU | H18: 3
A19: 5 - Advanced Engineering Skills | C19: Sedimentation | D19: 4 | E19: 5 - Extremely Important | F19: Picture 5 - 250 NTU | H19: 4
C20: Stacked Rapid Sand Filtration | D20: 5 | H20: 5 - Expert Skills
A24: Pre-Treatment | C24: Main-Treatment | E24: Disinfection
A25: None | C25: None | E25: None
A26: Roughing Filter | C26: Stacked Rapid Sand Filtration | E26: Chlorination
C27: Coagulation & Flocculation - Stacked Rapid Sand Filtration
C28: Coagulation & Flocculation - Sedimentation
C29: Coagulation & Flocculation - Sedimentation - Stacked Rapid Sand Filtration

Sheet Recommendation (hidden)
B2: Water Treatment Technology Selection Guide
E4: Pre-Treatment | F4: Main Treatment | I4: Dis-infection
C5: Top Recommendation
E7: Roughing Filter | F7: Stacked Rapid Sand Filtration | I7: Chlorination
C12: Contaminant Levels | D12: Source Water Quality | E12: After Pre-Treatment | F12: After Main Treatment | I12: After Disinfection | J12: ="Compliance with "& IF(Matrix!D29=0,"WHO Standards",IF(Matrix!D29=1,"US-EPA Standards",IF(Matrix!D29=2,"Local Standards","WHO Standards"))) -> Compliance with WHO Standards
E13: =E7 -> Roughing Filter | F13: =F7 -> Stacked Rapid Sand Filtration | I13: =I7 -> Chlorination
C14: Turbidity | D14: =Matrix!B9 & " " & Matrix!C9 -> 25 NTU | E14: =(100%-IF($E$13 = "Roughing Filter", 'Quality Standard'!J2,0))*Matrix!B9 & " " &Matrix!C9 -> 6.25 NTU | F14: =(100%-IF($E$13 = "Roughing Filter", 'Quality Standard'!J2,0))*(100%-IF($F$13="Stacked Rapid Sand Filtration", 'Quality Standard'!G2,IF($F$13="Coagulation & Flocculation - Stacked Rapid Sand Filtration", 'Quality Standard'!I2,IF($F$13= "Coagulation & Flocculation - Sedimentation", 'Quality Standard'!H2,IF($F$13 = "Coagulation & Flocculation - Sedimentation - Stacked Rapid Sand Filtration", 100%-(100%-'Quality Standard'!H2)*(100%-'Quality Standard'!G2),0)))))*Matrix!B9 & " " &Matrix!C9 -> 1.875 NTU | I14: =(100%-IF($E$13 = "Roughing Filter", 'Quality Standard'!J2,0))*(100%-IF($F$13="Stacked Rapid Sand Filtration", 'Quality Standard'!G2,IF($F$13="Coagulation & Flocculation - Stacked Rapid Sand Filtration", 'Quality Standard'!I2,IF($F$13= "Coagulation & Flocculation - Sedimentation", 'Quality Standard'!H2,IF($F$13 = "Coagulation & Flocculation - Sedimentation - Stacked Rapid Sand Filtration", 100%-(100%-'Quality Standard'!H2)*(100%-'Quality Standard'!G2),0)))))*(100%-IF($I$13 = "Chlorination", 'Quality Standard'!F2,0))*Matrix!B9 & " " & Matrix!C9 -> 1.875 NTU | J14: =IF((100%-IF($E$13 = "Roughing Filter", 'Quality Standard'!J2,0))*(100%-IF($F$13="Stacked Rapid Sand Filtration", 'Quality Standard'!G2,IF($F$13="Coagulation & Flocculation - Stacked Rapid Sand Filtration", 'Quality Standard'!I2,IF($F$13= "Coagulation & Flocculation - Sedimentation", 'Quality Standard'!H2,IF($F$13 = "Coagulation & Flocculation - Sedimentation - Stacked Rapid Sand Filtration", 100%-(100%-'Quality Standard'!H2)*(100%-'Quality Standard'!G2),0)))))*(100%-IF($I$13 = "Chlorination", 'Quality Standard'!F2,0))*Matrix!B9 <= OFFSET('Quality Standard'!B2,0,Matrix!$D$29), "Comply", "Does Not Comply") -> Comply
C15: Cryptosporidium | D15: =Matrix!B15 & " " & Matrix!C15 -> 0.0001 Organisms/L | E15: =(100%-IF($E$13 = "Roughing Filter", 'Quality Standard'!J3,0))*Matrix!B15 & " " & Matrix!C15 -> 0.000025 Organisms/L | F15: =(100%-IF($E$13 = "Roughing Filter", 'Quality Standard'!J3,0))*(100%-IF($F$13="Stacked Rapid Sand Filtration", 'Quality Standard'!G3,IF($F$13="Coagulation & Flocculation - Stacked Rapid Sand Filtration", 'Quality Standard'!I3,IF($F$13= "Coagulation & Flocculation - Sedimentation", 'Quality Standard'!H3,IF($F$13 = "Coagulation & Flocculation - Sedimentation - Stacked Rapid Sand Filtration", 100%-(100%-'Quality Standard'!H3)*(100%-'Quality Standard'!G3),0)))))*Matrix!B15 & " " &Matrix!C15 -> 0.0000075 Organisms/L | I15: =(100%-IF($E$13 = "Roughing Filter", 'Quality Standard'!J3,0))*(100%-IF($F$13="Stacked Rapid Sand Filtration", 'Quality Standard'!G3,IF($F$13="Coagulation & Flocculation - Stacked Rapid Sand Filtration", 'Quality Standard'!I3,IF($F$13= "Coagulation & Flocculation - Sedimentation", 'Quality Standard'!H3,IF($F$13 = "Coagulation & Flocculation - Sedimentation - Stacked Rapid Sand Filtration", 100%-(100%-'Quality Standard'!H3)*(100%-'Quality Standard'!G3),0)))))*(100%-IF($I$13 = "Chlorination", 'Quality Standard'!F3,0))*Matrix!B15 & " " &Matrix!C15 -> 0.0000075 Organisms/L | J15: =IF((100%-IF($E$13 = "Roughing Filter", 'Quality Standard'!J3,0))*(100%-IF($F$13="Stacked Rapid Sand Filtration", 'Quality Standard'!G3,IF($F$13="Coagulation & Flocculation - Stacked Rapid Sand Filtration", 'Quality Standard'!I3,IF($F$13= "Coagulation & Flocculation - Sedimentation", 'Quality Standard'!H3,IF($F$13 = "Coagulation & Flocculation - Sedimentation - Stacked Rapid Sand Filtration", 100%-(100%-'Quality Standard'!H3)*(100%-'Quality Standard'!G3),0)))))*(100%-IF($I$13 = "Chlorination", 'Quality Standard'!F3,0))*Matrix!B15<=OFFSET('Quality Standard'!B3,0,Matrix!D29), "Comply", "Does Not Comply") -> Comply
C16: Total Coliform | D16: =Matrix!B16 & " " & Matrix!C16 -> 0.00022 Organisms/L | E16: =(100%-IF($E$13 = "Roughing Filter", 'Quality Standard'!J4,0))*Matrix!B16 & " " &Matrix!C16 -> 0.00000825 Organisms/L | F16: =(100%-IF($E$13 = "Roughing Filter", 'Quality Standard'!J4,0))*(100%-IF($F$13="Stacked Rapid Sand Filtration", 'Quality Standard'!G4,IF($F$13="Coagulation & Flocculation - Stacked Rapid Sand Filtration", 'Quality Standard'!I4,IF($F$13= "Coagulation & Flocculation - Sedimentation", 'Quality Standard'!H4,IF($F$13 = "Coagulation & Flocculation - Sedimentation - Stacked Rapid Sand Filtration", 100%-(100%-'Quality Standard'!H4)*(100%-'Quality Standard'!G4),0)))))*Matrix!B16 & " " &Matrix!C16 -> 0.00000614625 Organisms/L | I16: =(100%-IF($E$13 = "Roughing Filter", 'Quality Standard'!J4,0))*(100%-IF($F$13="Stacked Rapid Sand Filtration", 'Quality Standard'!G4,IF($F$13="Coagulation & Flocculation - Stacked Rapid Sand Filtration", 'Quality Standard'!I4,IF($F$13= "Coagulation & Flocculation - Sedimentation", 'Quality Standard'!H4,IF($F$13 = "Coagulation & Flocculation - Sedimentation - Stacked Rapid Sand Filtration", 100%-(100%-'Quality Standard'!H4)*(100%-'Quality Standard'!G4),0)))))*(100%-IF($I$13 = "Chlorination", 'Quality Standard'!F4,0))*Matrix!B16 & " " &Matrix!C16 -> 0.00000000614625 Organisms/L | J16: =IF((100%-IF($E$13 = "Roughing Filter", 'Quality Standard'!J4,0))*(100%-IF($F$13="Stacked Rapid Sand Filtration", 'Quality Standard'!G4,IF($F$13="Coagulation & Flocculation - Stacked Rapid Sand Filtration", 'Quality Standard'!I4,IF($F$13= "Coagulation & Flocculation - Sedimentation", 'Quality Standard'!H4,IF($F$13 = "Coagulation & Flocculation - Sedimentation - Stacked Rapid Sand Filtration", 100%-(100%-'Quality Standard'!H4)*(100%-'Quality Standard'!G4),0)))))*(100%-IF($I$13 = "Chlorination", 'Quality Standard'!F4,0))*Matrix!B16<=OFFSET('Quality Standard'!B4,0,Matrix!D29), "Comply", "Does Not Comply") -> Does Not Comply
C17: Rotavirus | D17: =Matrix!B17 & " " & Matrix!C17 -> 0.00013 Organisms/L | E17: =(100%-IF($E$13 = "Roughing Filter", 'Quality Standard'!J5,0))*Matrix!B17 & " " &Matrix!C17 -> 0.00013 Organisms/L | F17: =(100%-IF($E$13 = "Roughing Filter", 'Quality Standard'!J5,0))*(100%-IF($F$13="Stacked Rapid Sand Filtration", 'Quality Standard'!G5,IF($F$13="Coagulation & Flocculation - Stacked Rapid Sand Filtration", 'Quality Standard'!I5,IF($F$13= "Coagulation & Flocculation - Sedimentation", 'Quality Standard'!H5,IF($F$13 = "Coagulation & Flocculation - Sedimentation - Stacked Rapid Sand Filtration", 100%-(100%-'Quality Standard'!H5)*(100%-'Quality Standard'!G5),0)))))*Matrix!B17& " " &Matrix!C17 -> 0.00009685 Organisms/L | I17: =(100%-IF($E$13 = "Roughing Filter", 'Quality Standard'!J5,0))*(100%-IF($F$13="Stacked Rapid Sand Filtration", 'Quality Standard'!G5,IF($F$13="Coagulation & Flocculation - Stacked Rapid Sand Filtration", 'Quality Standard'!I5,IF($F$13= "Coagulation & Flocculation - Sedimentation", 'Quality Standard'!H5,IF($F$13 = "Coagulation & Flocculation - Sedimentation - Stacked Rapid Sand Filtration", 100%-(100%-'Quality Standard'!H5)*(100%-'Quality Standard'!G5),0)))))*(100%-IF($I$13 = "Chlorination", 'Quality Standard'!F5,0))*Matrix!B17 & " " &Matrix!C17 -> 9.68500000000001E-08 Organisms/L | J17: =IF((100%-IF($E$13 = "Roughing Filter", 'Quality Standard'!J5,0))*(100%-IF($F$13="Stacked Rapid Sand Filtration", 'Quality Standard'!G5,IF($F$13="Coagulation & Flocculation - Stacked Rapid Sand Filtration", 'Quality Standard'!I5,IF($F$13= "Coagulation & Flocculation - Sedimentation", 'Quality Standard'!H5,IF($F$13 = "Coagulation & Flocculation - Sedimentation - Stacked Rapid Sand Filtration", 100%-(100%-'Quality Standard'!H5)*(100%-'Quality Standard'!G5),0)))))*(100%-IF($I$13 = "Chlorination", 'Quality Standard'!F5,0))*Matrix!B17 <=OFFSET('Quality Standard'!B5,0,Matrix!D29), "Comply", "Does Not Comply") -> Comply
C18: Cadmium | D18: =Matrix!B23 & " " &Matrix!C23 -> 0 mg/L | E18: =(100%-IF($E$13 = "Roughing Filter", 'Quality Standard'!J6,0))*Matrix!B23 & " " & Matrix!C23 -> 0 mg/L | F18: =(100%-IF($E$13 = "Roughing Filter", 'Quality Standard'!J6,0))*(100%-IF($F$13="Stacked Rapid Sand Filtration", 'Quality Standard'!G6,IF($F$13="Coagulation & Flocculation - Stacked Rapid Sand Filtration", 'Quality Standard'!I6,IF($F$13= "Coagulation & Flocculation - Sedimentation", 'Quality Standard'!H6,IF($F$13 = "Coagulation & Flocculation - Sedimentation - Stacked Rapid Sand Filtration", 100%-(100%-'Quality Standard'!H6)*(100%-'Quality Standard'!G6),0)))))*Matrix!B23 & " " & Matrix!C23 -> 0 mg/L | I18: =(100%-IF($E$13 = "Roughing Filter", 'Quality Standard'!J6,0))*(100%-IF($F$13="Stacked Rapid Sand Filtration", 'Quality Standard'!G6,IF($F$13="Coagulation & Flocculation - Stacked Rapid Sand Filtration", 'Quality Standard'!I6,IF($F$13= "Coagulation & Flocculation - Sedimentation", 'Quality Standard'!H6,IF($F$13 = "Coagulation & Flocculation - Sedimentation - Stacked Rapid Sand Filtration", 100%-(100%-'Quality Standard'!H6)*(100%-'Quality Standard'!G6),0)))))*(100%-IF($I$13 = "Chlorination", 'Quality Standard'!F6,0))*Matrix!B23 & " " &Matrix!C23 -> 0 mg/L | J18: =IF((100%-IF($E$13 = "Roughing Filter", 'Quality Standard'!J6,0))*(100%-IF($F$13="Stacked Rapid Sand Filtration", 'Quality Standard'!G6,IF($F$13="Coagulation & Flocculation - Stacked Rapid Sand Filtration", 'Quality Standard'!I6,IF($F$13= "Coagulation & Flocculation - Sedimentation", 'Quality Standard'!H6,IF($F$13 = "Coagulation & Flocculation - Sedimentation - Stacked Rapid Sand Filtration", 100%-(100%-'Quality Standard'!H6)*(100%-'Quality Standard'!G6),0)))))*(100%-IF($I$13 = "Chlorination", 'Quality Standard'!F6,0))*Matrix!B23<=OFFSET('Quality Standard'!B6,0,Matrix!D29), "Comply", "Does Not Comply") -> Comply
C19: Total Chromium | D19: =Matrix!B24 & " " &Matrix!C24 -> 0 mg/L | E19: =(100%-IF($E$13 = "Roughing Filter", 'Quality Standard'!J7,0))*Matrix!B24 & " " & Matrix!C24 -> 0 mg/L | F19: =(100%-IF($E$13 = "Roughing Filter", 'Quality Standard'!J7,0))*(100%-IF($F$13="Stacked Rapid Sand Filtration", 'Quality Standard'!G7,IF($F$13="Coagulation & Flocculation - Stacked Rapid Sand Filtration", 'Quality Standard'!I7,IF($F$13= "Coagulation & Flocculation - Sedimentation", 'Quality Standard'!H7,IF($F$13 = "Coagulation & Flocculation - Sedimentation - Stacked Rapid Sand Filtration", 100%-(100%-'Quality Standard'!H7)*(100%-'Quality Standard'!G7),0)))))*Matrix!B24 & " " & Matrix!C24 -> 0 mg/L | I19: =(100%-IF($E$13 = "Roughing Filter", 'Quality Standard'!J7,0))*(100%-IF($F$13="Stacked Rapid Sand Filtration", 'Quality Standard'!G7,IF($F$13="Coagulation & Flocculation - Stacked Rapid Sand Filtration", 'Quality Standard'!I7,IF($F$13= "Coagulation & Flocculation - Sedimentation", 'Quality Standard'!H7,IF($F$13 = "Coagulation & Flocculation - Sedimentation - Stacked Rapid Sand Filtration", 100%-(100%-'Quality Standard'!H7)*(100%-'Quality Standard'!G7),0)))))*(100%-IF($I$13 = "Chlorination", 'Quality Standard'!F7,0))*Matrix!B24 & " " &Matrix!C24 -> 0 mg/L | J19: =IF((100%-IF($E$13 = "Roughing Filter", 'Quality Standard'!J7,0))*(100%-IF($F$13="Stacked Rapid Sand Filtration", 'Quality Standard'!G7,IF($F$13="Coagulation & Flocculation - Stacked Rapid Sand Filtration", 'Quality Standard'!I7,IF($F$13= "Coagulation & Flocculation - Sedimentation", 'Quality Standard'!H7,IF($F$13 = "Coagulation & Flocculation - Sedimentation - Stacked Rapid Sand Filtration", 100%-(100%-'Quality Standard'!H7)*(100%-'Quality Standard'!G7),0)))))*(100%-IF($I$13 = "Chlorination", 'Quality Standard'!F7,0))*Matrix!B24<=OFFSET('Quality Standard'!B7,0,Matrix!D29), "Comply", "Does Not Comply") -> Comply
C20: Mercury | D20: =Matrix!B26 & " " &Matrix!C26 -> 0 mg/L | E20: =(100%-IF($E$13 = "Roughing Filter", 'Quality Standard'!J8,0))*Matrix!B26 & " " &Matrix!C26 -> 0 mg/L | F20: =(100%-IF($E$13 = "Roughing Filter", 'Quality Standard'!J8,0))*(100%-IF($F$13="Stacked Rapid Sand Filtration", 'Quality Standard'!G8,IF($F$13="Coagulation & Flocculation - Stacked Rapid Sand Filtration", 'Quality Standard'!I8,IF($F$13= "Coagulation & Flocculation - Sedimentation", 'Quality Standard'!H8,IF($F$13 = "Coagulation & Flocculation - Sedimentation - Stacked Rapid Sand Filtration", 100%-(100%-'Quality Standard'!H8)*(100%-'Quality Standard'!G8),0)))))*Matrix!B26 & " " &Matrix!C26 -> 0 mg/L | I20: =(100%-IF($E$13 = "Roughing Filter", 'Quality Standard'!J8,0))*(100%-IF($F$13="Stacked Rapid Sand Filtration", 'Quality Standard'!G8,IF($F$13="Coagulation & Flocculation - Stacked Rapid Sand Filtration", 'Quality Standard'!I8,IF($F$13= "Coagulation & Flocculation - Sedimentation", 'Quality Standard'!H8,IF($F$13 = "Coagulation & Flocculation - Sedimentation - Stacked Rapid Sand Filtration", 100%-(100%-'Quality Standard'!H8)*(100%-'Quality Standard'!G8),0)))))*(100%-IF($I$13 = "Chlorination", 'Quality Standard'!F8,0))*Matrix!B26 & " " &Matrix!C26 -> 0 mg/L | J20: =IF((100%-IF($E$13 = "Roughing Filter", 'Quality Standard'!J8,0))*(100%-IF($F$13="Stacked Rapid Sand Filtration", 'Quality Standard'!G8,IF($F$13="Coagulation & Flocculation - Stacked Rapid Sand Filtration", 'Quality Standard'!I8,IF($F$13= "Coagulation & Flocculation - Sedimentation", 'Quality Standard'!H8,IF($F$13 = "Coagulation & Flocculation - Sedimentation - Stacked Rapid Sand Filtration", 100%-(100%-'Quality Standard'!H8)*(100%-'Quality Standard'!G8),0)))))*(100%-IF($I$13 = "Chlorination", 'Quality Standard'!F8,0))*Matrix!B26<OFFSET('Quality Standard'!B8,0,Matrix!D29), "Comply", "Does Not Comply") -> Comply
C21: Selenium | D21: =Matrix!B27 & " " &Matrix!C27 -> 0 mg/L | E21: =(100%-IF($E$13 = "Roughing Filter", 'Quality Standard'!J9,0))*Matrix!B27 & " " &Matrix!C27 -> 0 mg/L | F21: =(100%-IF($E$13 = "Roughing Filter", 'Quality Standard'!J9,0))*(100%-IF($F$13="Stacked Rapid Sand Filtration", 'Quality Standard'!G9,IF($F$13="Coagulation & Flocculation - Stacked Rapid Sand Filtration", 'Quality Standard'!I9,IF($F$13= "Coagulation & Flocculation - Sedimentation", 'Quality Standard'!H9,IF($F$13 = "Coagulation & Flocculation - Sedimentation - Stacked Rapid Sand Filtration", 100%-(100%-'Quality Standard'!H9)*(100%-'Quality Standard'!G9),0)))))*Matrix!B27 & " " &Matrix!C27 -> 0 mg/L | I21: =(100%-IF($E$13 = "Roughing Filter", 'Quality Standard'!J9,0))*(100%-IF($F$13="Stacked Rapid Sand Filtration", 'Quality Standard'!G9,IF($F$13="Coagulation & Flocculation - Stacked Rapid Sand Filtration", 'Quality Standard'!I9,IF($F$13= "Coagulation & Flocculation - Sedimentation", 'Quality Standard'!H9,IF($F$13 = "Coagulation & Flocculation - Sedimentation - Stacked Rapid Sand Filtration", 100%-(100%-'Quality Standard'!H9)*(100%-'Quality Standard'!G9),0)))))*(100%-IF($I$13 = "Chlorination", 'Quality Standard'!F9,0))*Matrix!B27 & " " &Matrix!C27 -> 0 mg/L | J21: =IF((100%-IF($E$13 = "Roughing Filter", 'Quality Standard'!J9,0))*(100%-IF($F$13="Stacked Rapid Sand Filtration", 'Quality Standard'!G9,IF($F$13="Coagulation & Flocculation - Stacked Rapid Sand Filtration", 'Quality Standard'!I9,IF($F$13= "Coagulation & Flocculation - Sedimentation", 'Quality Standard'!H9,IF($F$13 = "Coagulation & Flocculation - Sedimentation - Stacked Rapid Sand Filtration", 100%-(100%-'Quality Standard'!H9)*(100%-'Quality Standard'!G9),0)))))*(100%-IF($I$13 = "Chlorination", 'Quality Standard'!F9,0))*Matrix!B27<OFFSET('Quality Standard'!B9,0,Matrix!D29),"Comply", "Does Not Comply") -> Comply
C24: Resource Requirements:
C26: =Matrix!A42 -> Chlorine | D26: Met | E26: =Matrix!A47 -> Gravel | F26: Met | G26: Mason | H26: Met
C27: =Matrix!A43 -> PACl | D27: Not Applicable | E27: Cement | F27: Met | G27: Carpenters | H27: Met
C28: =Matrix!A44 -> Alum | D28: Not Applicable | E28: =Matrix!A49 -> Bricks | F28: Met | G28: Metal Workers | H28: Met
C29: =Matrix!A45 -> Ferric Chloride | D29: Not Applicable | E29: =Matrix!A50 -> PVC Pipings | F29: Met
C30: =Matrix!A46 -> Sand | D30: Met | E30: =Matrix!A51 -> Float Valves | F30: Met
A33: Implementing A Sustainable Water Treatment System - the AguaClara Way!
B35: AguaClara is a multi-disciplinary program at Cornell University that designs sustainable water treatment systems. Gravity-powered, affordable AguaClara technologies currently provide clean water to over 25,000 people in communities around the world every day.
B43: With the AguaClara approach, the costs and required site area
B44: for your plant is estimated as follows:
B46: Capital Cost (USD) | D46: >$180,000
B47: Operating Cost (USD) | D47: $24,000-$36,000
B48: Area (m2) | D48: 10.8861

Sheet VendorQuestions (hidden)
B3: Top 15 Questions to Ask Your Technology Vendor
B5: 1. What is the track record of this equipment, where has it been used and what is the maximum capacity of the plant it has been used in?
B6: 2. Is there any reference I can contact to find out more about its performance?
B7: 3. Is this equipment/system certified for use in my country?
B8: 4. What is the expected lifetime of this equipment/system, and what is the length of warranty?
B9: 5. What does the warranty cover - material and/or service?
B10: 6. Can our operators perform maintenance tasks on the equipment on our own accord, or must we get qualified service personnel to carry out servicing?
B11: 7. Is there any training that you provide to our operators to equip themselves of the skills necessary to operate and maintain the equipment/system?
B12: 8. Where is the nearest service support center for this equipment/system, and who to contact?
B13: 9. Will there be any follow-up servicing included in the purchase price to ensure the equipment/system is working properly after a year?
B14: 10. What are the spare parts that need to be kept to be changed periodically, and how often do I need to change them?
B15: 11. Where can I purchase the spare parts locally?
B16: 12. What is the individual cost of these spare parts?
B17: 13. Can you describe the routine maintenance needed for this equipment/system, and what is the cost involved with this routine maintenance?
B18: 14. Can you brief us on the health and safety hazards associated with this equipment/system?
B19: 15. What is the purchase price and the terms of payment for the equipment/system?

Sheet Costs (hidden)
B2: Option 1: Chlorination | C2: Option 2: Stacked Rapid Sand Filtration - Chlorination | D2: Option 3: Roughing Filter - Stacked Rapid Sand Filtration - Chlorination | E2: Option 4: Coagulation & Flocculation - Stacked Rapid Sand Filtration - Chlorination | F2: Option 5: Coagulation & Flocculation - Sedimentation - Chlorination | G2: Option 6: Coagulation & Flocculation - Sedimentation - Stacked Rapid Sand Filtration - Chlorination | H2: Option 7: Stacked Rapid Sand Filtration | I2: Option 8: Roughing Filter + Stacked Rapid Sand Filtration | J2: Option 9: Coagulation + Flocculation + Stacked Rapid Sand Filtration | K2: Option 10: Coagulation + Flocculation + Sedimentation | L2: Option 11: Coagulation + Flocculation + Sedimentation + Stacked Rapid Sand Filtration
A3: Cost | B3: LOW | C3: MEDIUM | D3: VERY HIGH | E3: HIGH | F3: HIGH | G3: VERY HIGH | H3: MEDIUM | I3: VERY HIGH | J3: HIGH | K3: HIGH | L3: VERY HIGH
B6: Possible Combinations of UTPs | G6: CAPEX | H6: OPEX | I6: Corresponds to / because
A7: 1 | B7: None | C7: None | D7: None | E7: None | F7: None | G7: Nil | H7: Nil
A8: =A7+1 -> 2 | B8: Roughing Filter | C8: None | D8: None | E8: None | F8: None | G8: Very High | H8: High | I8: RF
A9: =A8+1 -> 3 | B9: None | C9: Stacked Rapid Sand Filtration | D9: None | E9: None | F9: None | G9: Medium | H9: Medium | I9: 7
A10: 4 | B10: None | C10: Coagulation & Flocculation | D10: Stacked Rapid Sand Filtration | E10: None | F10: None | G10: High | H10: High | I10: 9
A11: 5 | B11: None | C11: Coagulation & Flocculation | D11: Sedimentation | E11: None | F11: None | G11: High | H11: Low | I11: 10
A12: 6 | B12: None | C12: Coagulation & Flocculation | D12: Sedimentation | E12: Stacked Rapid Sand Filtration | F12: None | G12: Very High | H12: Low | I12: 11
A13: 7 | B13: None | C13: None | D13: None | E13: None | F13: Chlorination | G13: Low | H13: Low | I13: 1
A14: 8 | B14: Roughing Filter | C14: Stacked Rapid Sand Filtration | D14: None | E14: None | F14: None | G14: Very High | H14: High | I14: RF, 8
A15: 9 | B15: Roughing Filter | C15: Coagulation & Flocculation | D15: Stacked Rapid Sand Filtration | E15: None | F15: None | G15: Very High | H15: High | I15: RF
A16: 10 | B16: Roughing Filter | C16: Coagulation & Flocculation | D16: Sedimentation | E16: None | F16: None | G16: Very High | H16: High | I16: RF
A17: 11 | B17: Roughing Filter | C17: Coagulation & Flocculation | D17: Sedimentation | E17: Stacked Rapid Sand Filtration | F17: None | G17: Very High | H17: High | I17: RF
A18: 12 | B18: Roughing Filter | C18: None | D18: None | E18: None | F18: Chlorination | G18: Very High | H18: High | I18: RF
A19: 13 | B19: None | C19: Stacked Rapid Sand Filtration | D19: None | E19: None | F19: Chlorination | G19: Medium | H19: Medium | I19: 2
A20: 14 | B20: None | C20: Coagulation & Flocculation | D20: Stacked Rapid Sand Filtration | E20: None | F20: Chlorination | G20: High | H20: High | I20: 4
A21: 15 | B21: None | C21: Coagulation & Flocculation | D21: Sedimentation | E21: None | F21: Chlorination | G21: High | H21: Medium | I21: 5
A22: 16 | B22: None | C22: Coagulation & Flocculation | D22: Sedimentation | E22: Stacked Rapid Sand Filtration | F22: Chlorination | G22: Very High | H22: Medium | I22: 6
A23: 17 | B23: Roughing Filter | C23: Stacked Rapid Sand Filtration | D23: None | E23: None | F23: Chlorination | G23: Very High | H23: High | I23: RF, 3
A24: 18 | B24: Roughing Filter | C24: Coagulation & Flocculation | D24: Stacked Rapid Sand Filtration | E24: None | F24: Chlorination | G24: Very High | H24: High | I24: RF
A25: 19 | B25: Roughing Filter | C25: Coagulation & Flocculation | D25: Sedimentation | E25: None | F25: Chlorination | G25: Very High | H25: High | I25: RF
A26: 20 | B26: Roughing Filter | C26: Coagulation & Flocculation | D26: Sedimentation | E26: Stacked Rapid Sand Filtration | F26: Chlorination | G26: Very High | H26: High | I26: RF
B28: Flow Ratio | C28: =Matrix!B3/(10000*150) -> 0.6
B30: Cost Matrix
B31: Capex Min | C31: Capex Max | D31: Opex Min | E31: Opex Max
A32: Low | B32: 0 | C32: =C28*50000 -> 30000 | D32: 0 | E32: =C28*20000 -> 12000
A33: Medium | B33: =C28*50000 -> 30000 | C33: =C28*200000 -> 120000 | D33: =C28*20000 -> 12000 | E33: =C28*40000 -> 24000
A34: High | B34: =C28*200000 -> 120000 | C34: =C28*300000 -> 180000 | D34: =C28*40000 -> 24000 | E34: =C28*60000 -> 36000
A35: Very High | B35: =C28*300000 -> 180000 | C35: $ XXX | D35: =C28*60000 -> 36000 | E35: $ XXX
